Workbook

Sheet المعلومات
A1: التاريخ | B1: رقم الأمر | C1: الجهة | D1: اسم الزبون | E1: النوع | F1: الملاحظات | G1: كود المصنع
A2: 2018-01-01 | B2: 1 | C2: الزبون 1 | D2: خالد | E2: ابواب | G2: AB35-AB14
A3: 2018-01-01 | B3: 1 | C3: الزبون 2 | D3: محمد | E3: كابينات | G3: KH03
A4: 2018-01-01 | B4: 1 | C4: الزبون 3 | D4: حسن | E4: كورين | G4: F01
A5: 2018-01-01 | B5: 2 | C5: الزبون 4 | D5: عبد الله | E5: كابينات | G5: KH01
A6: 2018-01-01 | B6: 3 | C6: الزبون 5 | D6: سعيد | E6: ابواب | G6: AB01
A7: 2018-01-01 | B7: 3 | C7: الزبون 6 | D7: محمد | E7: كابينات | G7: KH02
A8: 2018-01-01 | B8: 3 | C8: الزبون 7 | D8: حسن | E8: كوارتز | G8: CD03
A9: 2018-01-03 | B9: 4 | C9: الزبون 8 | D9: عبد الله | E9: ابواب | G9: AB15
A10: 2018-01-03 | B10: 4 | C10: الزبون 9 | D10: سعيد | E10: كابينات | G10: KH04
A11: 2018-01-03 | B11: 4 | D11: مهند علاء Z66 | E11: كوارتز | G11: CD04

Sheet التفاصيل
A1: نوع الكابينة | B1: مبلغ التكلفة | C1: العدد | D1: المساحة | E1: PVC | F1: الظهر | G1: اجمالي التكلفة | H1: اجمالي البيع | I1: الربح | J1: رقم الفاتورة
A2: AW 50*33*90 | B2: =IFERROR(VLOOKUP($A2,البيانات!$B$2:$L$7,11,FALSE),"") ->  | C2: 1 | D2: =IFERROR(VLOOKUP($A2,البيانات!$B$2:$L$7,2,FALSE)*C:C,"") ->  | E2: =IFERROR(VLOOKUP($A2,البيانات!$B$2:$L$7,3,FALSE)*C:C,"") ->  | F2: =IFERROR(VLOOKUP($A2,البيانات!$B$2:$L$7,4,FALSE)*C:C,"") ->  | G2: =IFERROR(C2*B2,"") ->  | H2: 27.5 | I2: =IFERROR(H2-G2,"") -> 
A3: AW 45*33*90 | B3: =IFERROR(VLOOKUP($A3,البيانات!$B$2:$L$7,11,FALSE),"") ->  | C3: 1 | D3: =IFERROR(VLOOKUP($A3,البيانات!$B$2:$L$7,2,FALSE)*C:C,"") ->  | E3: =IFERROR(VLOOKUP($A3,البيانات!$B$2:$L$7,3,FALSE)*C:C,"") ->  | F3: =IFERROR(VLOOKUP($A3,البيانات!$B$2:$L$7,4,FALSE)*C:C,"") ->  | G3: =IFERROR(C3*B3,"") ->  | H3: 26.35 | I3: =IFERROR(H3-G3,"") -> 
A4: AW 50*33*75 | B4: =IFERROR(VLOOKUP($A4,البيانات!$B$2:$L$7,11,FALSE),"") ->  | C4: 1 | D4: =IFERROR(VLOOKUP($A4,البيانات!$B$2:$L$7,2,FALSE)*C:C,"") ->  | E4: =IFERROR(VLOOKUP($A4,البيانات!$B$2:$L$7,3,FALSE)*C:C,"") ->  | F4: =IFERROR(VLOOKUP($A4,البيانات!$B$2:$L$7,4,FALSE)*C:C,"") ->  | H4: 23.12
A5: AW 45*33*75 | B5: =IFERROR(VLOOKUP($A5,البيانات!$B$2:$L$7,11,FALSE),"") ->  | C5: 1 | D5: =IFERROR(VLOOKUP($A5,البيانات!$B$2:$L$7,2,FALSE)*C:C,"") ->  | E5: =IFERROR(VLOOKUP($A5,البيانات!$B$2:$L$7,3,FALSE)*C:C,"") ->  | F5: =IFERROR(VLOOKUP($A5,البيانات!$B$2:$L$7,4,FALSE)*C:C,"") ->  | H5: 22.38
A6: AW 50*33*75 | B6: =IFERROR(VLOOKUP($A6,البيانات!$B$2:$L$7,11,FALSE),"") ->  | C6: 1 | D6: =IFERROR(VLOOKUP($A6,البيانات!$B$2:$L$7,2,FALSE)*C:C,"") ->  | E6: =IFERROR(VLOOKUP($A6,البيانات!$B$2:$L$7,3,FALSE)*C:C,"") ->  | F6: =IFERROR(VLOOKUP($A6,البيانات!$B$2:$L$7,4,FALSE)*C:C,"") ->  | H6: 23.12
A7: ATWC 60*60*33*75 | B7: =IFERROR(VLOOKUP($A7,البيانات!$B$2:$L$7,11,FALSE),"") ->  | C7: 1 | D7: =IFERROR(VLOOKUP($A7,البيانات!$B$2:$L$7,2,FALSE)*C:C,"") ->  | E7: =IFERROR(VLOOKUP($A7,البيانات!$B$2:$L$7,3,FALSE)*C:C,"") ->  | F7: =IFERROR(VLOOKUP($A7,البيانات!$B$2:$L$7,4,FALSE)*C:C,"") ->  | H7: 37.6
A8: AB 100*56*75 | B8: =IFERROR(VLOOKUP($A8,البيانات!$B$2:$L$7,11,FALSE),"") -> 20.286 | C8: 1 | D8: =IFERROR(VLOOKUP($A8,البيانات!$B$2:$L$7,2,FALSE)*C:C,"") -> 2.1 | E8: =IFERROR(VLOOKUP($A8,البيانات!$B$2:$L$7,3,FALSE)*C:C,"") -> 14.7 | F8: =IFERROR(VLOOKUP($A8,البيانات!$B$2:$L$7,4,FALSE)*C:C,"") -> 0.63 | G8: 20.286 | H8: 21.69 | I8: 1.404
B9: =IFERROR(VLOOKUP($A9,البيانات!$B$2:$L$7,11,FALSE),"") ->  | D9: =IFERROR(VLOOKUP($A9,البيانات!$B$2:$L$7,2,FALSE)*C:C,"") ->  | E9: =IFERROR(VLOOKUP($A9,البيانات!$B$2:$L$7,3,FALSE)*C:C,"") ->  | F9: =IFERROR(VLOOKUP($A9,البيانات!$B$2:$L$7,4,FALSE)*C:C,"") ->  | G9: =IFERROR(C9*B9,"") ->  | I9: =IFERROR(H9-G9,"") -> 
B10: =IFERROR(VLOOKUP($A10,البيانات!$B$2:$L$7,11,FALSE),"") ->  | D10: =IFERROR(VLOOKUP($A10,البيانات!$B$2:$L$7,2,FALSE)*C:C,"") ->  | E10: =IFERROR(VLOOKUP($A10,البيانات!$B$2:$L$7,3,FALSE)*C:C,"") ->  | F10: =IFERROR(VLOOKUP($A10,البيانات!$B$2:$L$7,4,FALSE)*C:C,"") -> 
B11: =IFERROR(VLOOKUP($A11,البيانات!$B$2:$L$7,11,FALSE),"") ->  | D11: =IFERROR(VLOOKUP($A11,البيانات!$B$2:$L$7,2,FALSE)*C:C,"") ->  | E11: =IFERROR(VLOOKUP($A11,البيانات!$B$2:$L$7,3,FALSE)*C:C,"") ->  | F11: =IFERROR(VLOOKUP($A11,البيانات!$B$2:$L$7,4,FALSE)*C:C,"") -> 
B12: =IFERROR(VLOOKUP($A12,البيانات!$B$2:$L$7,11,FALSE),"") ->  | D12: =IFERROR(VLOOKUP($A12,البيانات!$B$2:$L$7,2,FALSE)*C:C,"") ->  | E12: =IFERROR(VLOOKUP($A12,البيانات!$B$2:$L$7,3,FALSE)*C:C,"") ->  | F12: =IFERROR(VLOOKUP($A12,البيانات!$B$2:$L$7,4,FALSE)*C:C,"") -> 
B13: =IFERROR(VLOOKUP($A13,البيانات!$B$2:$L$7,11,FALSE),"") ->  | D13: =IFERROR(VLOOKUP($A13,البيانات!$B$2:$L$7,2,FALSE)*C:C,"") ->  | E13: =IFERROR(VLOOKUP($A13,البيانات!$B$2:$L$7,3,FALSE)*C:C,"") ->  | F13: =IFERROR(VLOOKUP($A13,البيانات!$B$2:$L$7,4,FALSE)*C:C,"") -> 
B14: =IFERROR(VLOOKUP($A14,البيانات!$B$2:$L$7,11,FALSE),"") ->  | D14: =IFERROR(VLOOKUP($A14,البيانات!$B$2:$L$7,2,FALSE)*C:C,"") ->  | E14: =IFERROR(VLOOKUP($A14,البيانات!$B$2:$L$7,3,FALSE)*C:C,"") ->  | F14: =IFERROR(VLOOKUP($A14,البيانات!$B$2:$L$7,4,FALSE)*C:C,"") -> 
B15: =IFERROR(VLOOKUP($A15,البيانات!$B$2:$L$7,11,FALSE),"") ->  | D15: =IFERROR(VLOOKUP($A15,البيانات!$B$2:$L$7,2,FALSE)*C:C,"") ->  | E15: =IFERROR(VLOOKUP($A15,البيانات!$B$2:$L$7,3,FALSE)*C:C,"") ->  | F15: =IFERROR(VLOOKUP($A15,البيانات!$B$2:$L$7,4,FALSE)*C:C,"") -> 
B16: =IFERROR(VLOOKUP($A16,البيانات!$B$2:$L$7,11,FALSE),"") ->  | D16: =IFERROR(VLOOKUP($A16,البيانات!$B$2:$L$7,2,FALSE)*C:C,"") ->  | E16: =IFERROR(VLOOKUP($A16,البيانات!$B$2:$L$7,3,FALSE)*C:C,"") ->  | F16: =IFERROR(VLOOKUP($A16,البيانات!$B$2:$L$7,4,FALSE)*C:C,"") -> 
B17: =IFERROR(VLOOKUP($A17,البيانات!$B$2:$L$7,11,FALSE),"") ->  | D17: =IFERROR(VLOOKUP($A17,البيانات!$B$2:$L$7,2,FALSE)*C:C,"") ->  | E17: =IFERROR(VLOOKUP($A17,البيانات!$B$2:$L$7,3,FALSE)*C:C,"") ->  | F17: =IFERROR(VLOOKUP($A17,البيانات!$B$2:$L$7,4,FALSE)*C:C,"") -> 
B18: =IFERROR(VLOOKUP($A18,البيانات!$B$2:$L$7,11,FALSE),"") ->  | D18: =IFERROR(VLOOKUP($A18,البيانات!$B$2:$L$7,2,FALSE)*C:C,"") ->  | E18: =IFERROR(VLOOKUP($A18,البيانات!$B$2:$L$7,3,FALSE)*C:C,"") ->  | F18: =IFERROR(VLOOKUP($A18,البيانات!$B$2:$L$7,4,FALSE)*C:C,"") -> 
B19: =IFERROR(VLOOKUP($A19,البيانات!$B$2:$L$7,11,FALSE),"") ->  | D19: =IFERROR(VLOOKUP($A19,البيانات!$B$2:$L$7,2,FALSE)*C:C,"") ->  | E19: =IFERROR(VLOOKUP($A19,البيانات!$B$2:$L$7,3,FALSE)*C:C,"") ->  | F19: =IFERROR(VLOOKUP($A19,البيانات!$B$2:$L$7,4,FALSE)*C:C,"") -> 
B20: =IFERROR(VLOOKUP($A20,البيانات!$B$2:$L$7,11,FALSE),"") ->  | D20: =IFERROR(VLOOKUP($A20,البيانات!$B$2:$L$7,2,FALSE)*C:C,"") ->  | E20: =IFERROR(VLOOKUP($A20,البيانات!$B$2:$L$7,3,FALSE)*C:C,"") ->  | F20: =IFERROR(VLOOKUP($A20,البيانات!$B$2:$L$7,4,FALSE)*C:C,"") -> 
B21: =IFERROR(VLOOKUP($A21,البيانات!$B$2:$L$7,11,FALSE),"") ->  | D21: =IFERROR(VLOOKUP($A21,البيانات!$B$2:$L$7,2,FALSE)*C:C,"") ->  | E21: =IFERROR(VLOOKUP($A21,البيانات!$B$2:$L$7,3,FALSE)*C:C,"") ->  | F21: =IFERROR(VLOOKUP($A21,البيانات!$B$2:$L$7,4,FALSE)*C:C,"") -> 
B22: =IFERROR(VLOOKUP($A22,البيانات!$B$2:$L$7,11,FALSE),"") ->  | D22: =IFERROR(VLOOKUP($A22,البيانات!$B$2:$L$7,2,FALSE)*C:C,"") ->  | E22: =IFERROR(VLOOKUP($A22,البيانات!$B$2:$L$7,3,FALSE)*C:C,"") ->  | F22: =IFERROR(VLOOKUP($A22,البيانات!$B$2:$L$7,4,FALSE)*C:C,"") -> 
B23: =IFERROR(VLOOKUP($A23,البيانات!$B$2:$L$7,11,FALSE),"") ->  | D23: =IFERROR(VLOOKUP($A23,البيانات!$B$2:$L$7,2,FALSE)*C:C,"") ->  | E23: =IFERROR(VLOOKUP($A23,البيانات!$B$2:$L$7,3,FALSE)*C:C,"") ->  | F23: =IFERROR(VLOOKUP($A23,البيانات!$B$2:$L$7,4,FALSE)*C:C,"") -> 
B24: =IFERROR(VLOOKUP($A24,البيانات!$B$2:$L$7,11,FALSE),"") ->  | D24: =IFERROR(VLOOKUP($A24,البيانات!$B$2:$L$7,2,FALSE)*C:C,"") ->  | E24: =IFERROR(VLOOKUP($A24,البيانات!$B$2:$L$7,3,FALSE)*C:C,"") ->  | F24: =IFERROR(VLOOKUP($A24,البيانات!$B$2:$L$7,4,FALSE)*C:C,"") -> 
B25: =IFERROR(VLOOKUP($A25,البيانات!$B$2:$L$7,11,FALSE),"") ->  | D25: =IFERROR(VLOOKUP($A25,البيانات!$B$2:$L$7,2,FALSE)*C:C,"") ->  | E25: =IFERROR(VLOOKUP($A25,البيانات!$B$2:$L$7,3,FALSE)*C:C,"") ->  | F25: =IFERROR(VLOOKUP($A25,البيانات!$B$2:$L$7,4,FALSE)*C:C,"") -> 
B26: =IFERROR(VLOOKUP($A26,البيانات!$B$2:$L$7,11,FALSE),"") ->  | D26: =IFERROR(VLOOKUP($A26,البيانات!$B$2:$L$7,2,FALSE)*C:C,"") ->  | E26: =IFERROR(VLOOKUP($A26,البيانات!$B$2:$L$7,3,FALSE)*C:C,"") ->  | F26: =IFERROR(VLOOKUP($A26,البيانات!$B$2:$L$7,4,FALSE)*C:C,"") -> 
B27: =IFERROR(VLOOKUP($A27,البيانات!$B$2:$L$7,11,FALSE),"") ->  | D27: =IFERROR(VLOOKUP($A27,البيانات!$B$2:$L$7,2,FALSE)*C:C,"") ->  | E27: =IFERROR(VLOOKUP($A27,البيانات!$B$2:$L$7,3,FALSE)*C:C,"") ->  | F27: =IFERROR(VLOOKUP($A27,البيانات!$B$2:$L$7,4,FALSE)*C:C,"") -> 
B28: =IFERROR(VLOOKUP($A28,البيانات!$B$2:$L$7,11,FALSE),"") ->  | D28: =IFERROR(VLOOKUP($A28,البيانات!$B$2:$L$7,2,FALSE)*C:C,"") ->  | E28: =IFERROR(VLOOKUP($A28,البيانات!$B$2:$L$7,3,FALSE)*C:C,"") ->  | F28: =IFERROR(VLOOKUP($A28,البيانات!$B$2:$L$7,4,FALSE)*C:C,"") -> 
B29: =IFERROR(VLOOKUP($A29,البيانات!$B$2:$L$7,11,FALSE),"") ->  | D29: =IFERROR(VLOOKUP($A29,البيانات!$B$2:$L$7,2,FALSE)*C:C,"") ->  | E29: =IFERROR(VLOOKUP($A29,البيانات!$B$2:$L$7,3,FALSE)*C:C,"") ->  | F29: =IFERROR(VLOOKUP($A29,البيانات!$B$2:$L$7,4,FALSE)*C:C,"") -> 
B30: =IFERROR(VLOOKUP($A30,البيانات!$B$2:$L$7,11,FALSE),"") ->  | D30: =IFERROR(VLOOKUP($A30,البيانات!$B$2:$L$7,2,FALSE)*C:C,"") ->  | E30: =IFERROR(VLOOKUP($A30,البيانات!$B$2:$L$7,3,FALSE)*C:C,"") ->  | F30: =IFERROR(VLOOKUP($A30,البيانات!$B$2:$L$7,4,FALSE)*C:C,"") -> 
B31: =IFERROR(VLOOKUP($A31,البيانات!$B$2:$L$7,11,FALSE),"") ->  | D31: =IFERROR(VLOOKUP($A31,البيانات!$B$2:$L$7,2,FALSE)*C:C,"") ->  | E31: =IFERROR(VLOOKUP($A31,البيانات!$B$2:$L$7,3,FALSE)*C:C,"") ->  | F31: =IFERROR(VLOOKUP($A31,البيانات!$B$2:$L$7,4,FALSE)*C:C,"") -> 
B32: =IFERROR(VLOOKUP($A32,البيانات!$B$2:$L$7,11,FALSE),"") ->  | D32: =IFERROR(VLOOKUP($A32,البيانات!$B$2:$L$7,2,FALSE)*C:C,"") ->  | E32: =IFERROR(VLOOKUP($A32,البيانات!$B$2:$L$7,3,FALSE)*C:C,"") ->  | F32: =IFERROR(VLOOKUP($A32,البيانات!$B$2:$L$7,4,FALSE)*C:C,"") -> 
B33: =IFERROR(VLOOKUP($A33,البيانات!$B$2:$L$7,11,FALSE),"") ->  | D33: =IFERROR(VLOOKUP($A33,البيانات!$B$2:$L$7,2,FALSE)*C:C,"") ->  | E33: =IFERROR(VLOOKUP($A33,البيانات!$B$2:$L$7,3,FALSE)*C:C,"") ->  | F33: =IFERROR(VLOOKUP($A33,البيانات!$B$2:$L$7,4,FALSE)*C:C,"") -> 
B34: =IFERROR(VLOOKUP($A34,البيانات!$B$2:$L$7,11,FALSE),"") ->  | D34: =IFERROR(VLOOKUP($A34,البيانات!$B$2:$L$7,2,FALSE)*C:C,"") ->  | E34: =IFERROR(VLOOKUP($A34,البيانات!$B$2:$L$7,3,FALSE)*C:C,"") ->  | F34: =IFERROR(VLOOKUP($A34,البيانات!$B$2:$L$7,4,FALSE)*C:C,"") -> 
B35: =IFERROR(VLOOKUP($A35,البيانات!$B$2:$L$7,11,FALSE),"") ->  | D35: =IFERROR(VLOOKUP($A35,البيانات!$B$2:$L$7,2,FALSE)*C:C,"") ->  | E35: =IFERROR(VLOOKUP($A35,البيانات!$B$2:$L$7,3,FALSE)*C:C,"") ->  | F35: =IFERROR(VLOOKUP($A35,البيانات!$B$2:$L$7,4,FALSE)*C:C,"") -> 
B36: =IFERROR(VLOOKUP($A36,البيانات!$B$2:$L$7,11,FALSE),"") ->  | D36: =IFERROR(VLOOKUP($A36,البيانات!$B$2:$L$7,2,FALSE)*C:C,"") ->  | E36: =IFERROR(VLOOKUP($A36,البيانات!$B$2:$L$7,3,FALSE)*C:C,"") ->  | F36: =IFERROR(VLOOKUP($A36,البيانات!$B$2:$L$7,4,FALSE)*C:C,"") -> 
B37: =IFERROR(VLOOKUP($A37,البيانات!$B$2:$L$7,11,FALSE),"") ->  | D37: =IFERROR(VLOOKUP($A37,البيانات!$B$2:$L$7,2,FALSE)*C:C,"") ->  | E37: =IFERROR(VLOOKUP($A37,البيانات!$B$2:$L$7,3,FALSE)*C:C,"") ->  | F37: =IFERROR(VLOOKUP($A37,البيانات!$B$2:$L$7,4,FALSE)*C:C,"") -> 
B38: =IFERROR(VLOOKUP($A38,البيانات!$B$2:$L$7,11,FALSE),"") ->  | D38: =IFERROR(VLOOKUP($A38,البيانات!$B$2:$L$7,2,FALSE)*C:C,"") ->  | E38: =IFERROR(VLOOKUP($A38,البيانات!$B$2:$L$7,3,FALSE)*C:C,"") ->  | F38: =IFERROR(VLOOKUP($A38,البيانات!$B$2:$L$7,4,FALSE)*C:C,"") -> 
B39: =IFERROR(VLOOKUP($A39,البيانات!$B$2:$L$7,11,FALSE),"") ->  | D39: =IFERROR(VLOOKUP($A39,البيانات!$B$2:$L$7,2,FALSE)*C:C,"") ->  | E39: =IFERROR(VLOOKUP($A39,البيانات!$B$2:$L$7,3,FALSE)*C:C,"") ->  | F39: =IFERROR(VLOOKUP($A39,البيانات!$B$2:$L$7,4,FALSE)*C:C,"") -> 
B40: =IFERROR(VLOOKUP($A40,البيانات!$B$2:$L$7,11,FALSE),"") ->  | D40: =IFERROR(VLOOKUP($A40,البيانات!$B$2:$L$7,2,FALSE)*C:C,"") ->  | E40: =IFERROR(VLOOKUP($A40,البيانات!$B$2:$L$7,3,FALSE)*C:C,"") ->  | F40: =IFERROR(VLOOKUP($A40,البيانات!$B$2:$L$7,4,FALSE)*C:C,"") -> 
B41: =IFERROR(VLOOKUP($A41,البيانات!$B$2:$L$7,11,FALSE),"") ->  | D41: =IFERROR(VLOOKUP($A41,البيانات!$B$2:$L$7,2,FALSE)*C:C,"") ->  | E41: =IFERROR(VLOOKUP($A41,البيانات!$B$2:$L$7,3,FALSE)*C:C,"") ->  | F41: =IFERROR(VLOOKUP($A41,البيانات!$B$2:$L$7,4,FALSE)*C:C,"") -> 
B42: =IFERROR(VLOOKUP($A42,البيانات!$B$2:$L$7,11,FALSE),"") ->  | D42: =IFERROR(VLOOKUP($A42,البيانات!$B$2:$L$7,2,FALSE)*C:C,"") ->  | E42: =IFERROR(VLOOKUP($A42,البيانات!$B$2:$L$7,3,FALSE)*C:C,"") ->  | F42: =IFERROR(VLOOKUP($A42,البيانات!$B$2:$L$7,4,FALSE)*C:C,"") -> 
B43: =IFERROR(VLOOKUP($A43,البيانات!$B$2:$L$7,11,FALSE),"") ->  | D43: =IFERROR(VLOOKUP($A43,البيانات!$B$2:$L$7,2,FALSE)*C:C,"") ->  | E43: =IFERROR(VLOOKUP($A43,البيانات!$B$2:$L$7,3,FALSE)*C:C,"") ->  | F43: =IFERROR(VLOOKUP($A43,البيانات!$B$2:$L$7,4,FALSE)*C:C,"") -> 
B44: =IFERROR(VLOOKUP($A44,البيانات!$B$2:$L$7,11,FALSE),"") ->  | D44: =IFERROR(VLOOKUP($A44,البيانات!$B$2:$L$7,2,FALSE)*C:C,"") ->  | E44: =IFERROR(VLOOKUP($A44,البيانات!$B$2:$L$7,3,FALSE)*C:C,"") ->  | F44: =IFERROR(VLOOKUP($A44,البيانات!$B$2:$L$7,4,FALSE)*C:C,"") -> 
B45: =IFERROR(VLOOKUP($A45,البيانات!$B$2:$L$7,11,FALSE),"") ->  | D45: =IFERROR(VLOOKUP($A45,البيانات!$B$2:$L$7,2,FALSE)*C:C,"") ->  | E45: =IFERROR(VLOOKUP($A45,البيانات!$B$2:$L$7,3,FALSE)*C:C,"") ->  | F45: =IFERROR(VLOOKUP($A45,البيانات!$B$2:$L$7,4,FALSE)*C:C,"") -> 
B46: =IFERROR(VLOOKUP($A46,البيانات!$B$2:$L$7,11,FALSE),"") ->  | D46: =IFERROR(VLOOKUP($A46,البيانات!$B$2:$L$7,2,FALSE)*C:C,"") ->  | E46: =IFERROR(VLOOKUP($A46,البيانات!$B$2:$L$7,3,FALSE)*C:C,"") ->  | F46: =IFERROR(VLOOKUP($A46,البيانات!$B$2:$L$7,4,FALSE)*C:C,"") -> 
B47: =IFERROR(VLOOKUP($A47,البيانات!$B$2:$L$7,11,FALSE),"") ->  | D47: =IFERROR(VLOOKUP($A47,البيانات!$B$2:$L$7,2,FALSE)*C:C,"") ->  | E47: =IFERROR(VLOOKUP($A47,البيانات!$B$2:$L$7,3,FALSE)*C:C,"") ->  | F47: =IFERROR(VLOOKUP($A47,البيانات!$B$2:$L$7,4,FALSE)*C:C,"") -> 
B48: =IFERROR(VLOOKUP($A48,البيانات!$B$2:$L$7,11,FALSE),"") ->  | D48: =IFERROR(VLOOKUP($A48,البيانات!$B$2:$L$7,2,FALSE)*C:C,"") ->  | E48: =IFERROR(VLOOKUP($A48,البيانات!$B$2:$L$7,3,FALSE)*C:C,"") ->  | F48: =IFERROR(VLOOKUP($A48,البيانات!$B$2:$L$7,4,FALSE)*C:C,"") -> 
B49: =IFERROR(VLOOKUP($A49,البيانات!$B$2:$L$7,11,FALSE),"") ->  | D49: =IFERROR(VLOOKUP($A49,البيانات!$B$2:$L$7,2,FALSE)*C:C,"") ->  | E49: =IFERROR(VLOOKUP($A49,البيانات!$B$2:$L$7,3,FALSE)*C:C,"") ->  | F49: =IFERROR(VLOOKUP($A49,البيانات!$B$2:$L$7,4,FALSE)*C:C,"") -> 
B50: =IFERROR(VLOOKUP($A50,البيانات!$B$2:$L$7,11,FALSE),"") ->  | D50: =IFERROR(VLOOKUP($A50,البيانات!$B$2:$L$7,2,FALSE)*C:C,"") ->  | E50: =IFERROR(VLOOKUP($A50,البيانات!$B$2:$L$7,3,FALSE)*C:C,"") ->  | F50: =IFERROR(VLOOKUP($A50,البيانات!$B$2:$L$7,4,FALSE)*C:C,"") -> 
B51: =IFERROR(VLOOKUP($A51,البيانات!$B$2:$L$7,11,FALSE),"") ->  | D51: =IFERROR(VLOOKUP($A51,البيانات!$B$2:$L$7,2,FALSE)*C:C,"") ->  | E51: =IFERROR(VLOOKUP($A51,البيانات!$B$2:$L$7,3,FALSE)*C:C,"") ->  | F51: =IFERROR(VLOOKUP($A51,البيانات!$B$2:$L$7,4,FALSE)*C:C,"") -> 
B52: =IFERROR(VLOOKUP($A52,البيانات!$B$2:$L$7,11,FALSE),"") ->  | D52: =IFERROR(VLOOKUP($A52,البيانات!$B$2:$L$7,2,FALSE)*C:C,"") ->  | E52: =IFERROR(VLOOKUP($A52,البيانات!$B$2:$L$7,3,FALSE)*C:C,"") ->  | F52: =IFERROR(VLOOKUP($A52,البيانات!$B$2:$L$7,4,FALSE)*C:C,"") -> 
B53: =IFERROR(VLOOKUP($A53,البيانات!$B$2:$L$7,11,FALSE),"") ->  | D53: =IFERROR(VLOOKUP($A53,البيانات!$B$2:$L$7,2,FALSE)*C:C,"") ->  | E53: =IFERROR(VLOOKUP($A53,البيانات!$B$2:$L$7,3,FALSE)*C:C,"") ->  | F53: =IFERROR(VLOOKUP($A53,البيانات!$B$2:$L$7,4,FALSE)*C:C,"") -> 
B54: =IFERROR(VLOOKUP($A54,البيانات!$B$2:$L$7,11,FALSE),"") ->  | D54: =IFERROR(VLOOKUP($A54,البيانات!$B$2:$L$7,2,FALSE)*C:C,"") ->  | E54: =IFERROR(VLOOKUP($A54,البيانات!$B$2:$L$7,3,FALSE)*C:C,"") ->  | F54: =IFERROR(VLOOKUP($A54,البيانات!$B$2:$L$7,4,FALSE)*C:C,"") -> 
B55: =IFERROR(VLOOKUP($A55,البيانات!$B$2:$L$7,11,FALSE),"") ->  | D55: =IFERROR(VLOOKUP($A55,البيانات!$B$2:$L$7,2,FALSE)*C:C,"") ->  | E55: =IFERROR(VLOOKUP($A55,البيانات!$B$2:$L$7,3,FALSE)*C:C,"") ->  | F55: =IFERROR(VLOOKUP($A55,البيانات!$B$2:$L$7,4,FALSE)*C:C,"") -> 
B56: =IFERROR(VLOOKUP($A56,البيانات!$B$2:$L$7,11,FALSE),"") ->  | D56: =IFERROR(VLOOKUP($A56,البيانات!$B$2:$L$7,2,FALSE)*C:C,"") ->  | E56: =IFERROR(VLOOKUP($A56,البيانات!$B$2:$L$7,3,FALSE)*C:C,"") ->  | F56: =IFERROR(VLOOKUP($A56,البيانات!$B$2:$L$7,4,FALSE)*C:C,"") ->  | G56: =IFERROR(C56*B56,"") -> 
B57: =IFERROR(VLOOKUP($A57,البيانات!$B$2:$L$7,11,FALSE),"") ->  | D57: =IFERROR(VLOOKUP($A57,البيانات!$B$2:$L$7,2,FALSE)*C:C,"") ->  | E57: =IFERROR(VLOOKUP($A57,البيانات!$B$2:$L$7,3,FALSE)*C:C,"") ->  | F57: =IFERROR(VLOOKUP($A57,البيانات!$B$2:$L$7,4,FALSE)*C:C,"") -> 
B58: =IFERROR(VLOOKUP($A58,البيانات!$B$2:$L$7,11,FALSE),"") ->  | D58: =IFERROR(VLOOKUP($A58,البيانات!$B$2:$L$7,2,FALSE)*C:C,"") ->  | E58: =IFERROR(VLOOKUP($A58,البيانات!$B$2:$L$7,3,FALSE)*C:C,"") ->  | F58: =IFERROR(VLOOKUP($A58,البيانات!$B$2:$L$7,4,FALSE)*C:C,"") -> 
B59: =IFERROR(VLOOKUP($A59,البيانات!$B$2:$L$7,11,FALSE),"") ->  | D59: =IFERROR(VLOOKUP($A59,البيانات!$B$2:$L$7,2,FALSE)*C:C,"") ->  | E59: =IFERROR(VLOOKUP($A59,البيانات!$B$2:$L$7,3,FALSE)*C:C,"") ->  | F59: =IFERROR(VLOOKUP($A59,البيانات!$B$2:$L$7,4,FALSE)*C:C,"") -> 
B60: =IFERROR(VLOOKUP($A60,البيانات!$B$2:$L$7,11,FALSE),"") ->  | D60: =IFERROR(VLOOKUP($A60,البيانات!$B$2:$L$7,2,FALSE)*C:C,"") ->  | E60: =IFERROR(VLOOKUP($A60,البيانات!$B$2:$L$7,3,FALSE)*C:C,"") ->  | F60: =IFERROR(VLOOKUP($A60,البيانات!$B$2:$L$7,4,FALSE)*C:C,"") -> 
B61: =IFERROR(VLOOKUP($A61,البيانات!$B$2:$L$7,11,FALSE),"") ->  | D61: =IFERROR(VLOOKUP($A61,البيانات!$B$2:$L$7,2,FALSE)*C:C,"") ->  | E61: =IFERROR(VLOOKUP($A61,البيانات!$B$2:$L$7,3,FALSE)*C:C,"") ->  | F61: =IFERROR(VLOOKUP($A61,البيانات!$B$2:$L$7,4,FALSE)*C:C,"") -> 
B62: =IFERROR(VLOOKUP($A62,البيانات!$B$2:$L$7,11,FALSE),"") ->  | D62: =IFERROR(VLOOKUP($A62,البيانات!$B$2:$L$7,2,FALSE)*C:C,"") ->  | E62: =IFERROR(VLOOKUP($A62,البيانات!$B$2:$L$7,3,FALSE)*C:C,"") ->  | F62: =IFERROR(VLOOKUP($A62,البيانات!$B$2:$L$7,4,FALSE)*C:C,"") -> 
B63: =IFERROR(VLOOKUP($A63,البيانات!$B$2:$L$7,11,FALSE),"") ->  | D63: =IFERROR(VLOOKUP($A63,البيانات!$B$2:$L$7,2,FALSE)*C:C,"") ->  | E63: =IFERROR(VLOOKUP($A63,البيانات!$B$2:$L$7,3,FALSE)*C:C,"") ->  | F63: =IFERROR(VLOOKUP($A63,البيانات!$B$2:$L$7,4,FALSE)*C:C,"") -> 
B64: =IFERROR(VLOOKUP($A64,البيانات!$B$2:$L$7,11,FALSE),"") ->  | D64: =IFERROR(VLOOKUP($A64,البيانات!$B$2:$L$7,2,FALSE)*C:C,"") ->  | E64: =IFERROR(VLOOKUP($A64,البيانات!$B$2:$L$7,3,FALSE)*C:C,"") ->  | F64: =IFERROR(VLOOKUP($A64,البيانات!$B$2:$L$7,4,FALSE)*C:C,"") -> 
B65: =IFERROR(VLOOKUP($A65,البيانات!$B$2:$L$7,11,FALSE),"") ->  | D65: =IFERROR(VLOOKUP($A65,البيانات!$B$2:$L$7,2,FALSE)*C:C,"") ->  | E65: =IFERROR(VLOOKUP($A65,البيانات!$B$2:$L$7,3,FALSE)*C:C,"") ->  | F65: =IFERROR(VLOOKUP($A65,البيانات!$B$2:$L$7,4,FALSE)*C:C,"") -> 
B66: =IFERROR(VLOOKUP($A66,البيانات!$B$2:$L$7,11,FALSE),"") ->  | D66: =IFERROR(VLOOKUP($A66,البيانات!$B$2:$L$7,2,FALSE)*C:C,"") ->  | E66: =IFERROR(VLOOKUP($A66,البيانات!$B$2:$L$7,3,FALSE)*C:C,"") ->  | F66: =IFERROR(VLOOKUP($A66,البيانات!$B$2:$L$7,4,FALSE)*C:C,"") -> 
B67: =IFERROR(VLOOKUP($A67,البيانات!$B$2:$L$7,11,FALSE),"") ->  | D67: =IFERROR(VLOOKUP($A67,البيانات!$B$2:$L$7,2,FALSE)*C:C,"") ->  | E67: =IFERROR(VLOOKUP($A67,البيانات!$B$2:$L$7,3,FALSE)*C:C,"") ->  | F67: =IFERROR(VLOOKUP($A67,البيانات!$B$2:$L$7,4,FALSE)*C:C,"") -> 
B68: =IFERROR(VLOOKUP($A68,البيانات!$B$2:$L$7,11,FALSE),"") ->  | D68: =IFERROR(VLOOKUP($A68,البيانات!$B$2:$L$7,2,FALSE)*C:C,"") ->  | E68: =IFERROR(VLOOKUP($A68,البيانات!$B$2:$L$7,3,FALSE)*C:C,"") ->  | F68: =IFERROR(VLOOKUP($A68,البيانات!$B$2:$L$7,4,FALSE)*C:C,"") -> 
B69: =IFERROR(VLOOKUP($A69,البيانات!$B$2:$L$7,11,FALSE),"") ->  | D69: =IFERROR(VLOOKUP($A69,البيانات!$B$2:$L$7,2,FALSE)*C:C,"") ->  | E69: =IFERROR(VLOOKUP($A69,البيانات!$B$2:$L$7,3,FALSE)*C:C,"") ->  | F69: =IFERROR(VLOOKUP($A69,البيانات!$B$2:$L$7,4,FALSE)*C:C,"") ->  | I69: =IFERROR(H69-G69,"") -> 
B70: =IFERROR(VLOOKUP($A70,البيانات!$B$2:$L$7,11,FALSE),"") ->  | D70: =IFERROR(VLOOKUP($A70,البيانات!$B$2:$L$7,2,FALSE)*C:C,"") ->  | E70: =IFERROR(VLOOKUP($A70,البيانات!$B$2:$L$7,3,FALSE)*C:C,"") ->  | F70: =IFERROR(VLOOKUP($A70,البيانات!$B$2:$L$7,4,FALSE)*C:C,"") -> 
B71: =IFERROR(VLOOKUP($A71,البيانات!$B$2:$L$7,11,FALSE),"") ->  | D71: =IFERROR(VLOOKUP($A71,البيانات!$B$2:$L$7,2,FALSE)*C:C,"") ->  | E71: =IFERROR(VLOOKUP($A71,البيانات!$B$2:$L$7,3,FALSE)*C:C,"") ->  | F71: =IFERROR(VLOOKUP($A71,البيانات!$B$2:$L$7,4,FALSE)*C:C,"") -> 
B72: =IFERROR(VLOOKUP($A72,البيانات!$B$2:$L$7,11,FALSE),"") ->  | D72: =IFERROR(VLOOKUP($A72,البيانات!$B$2:$L$7,2,FALSE)*C:C,"") ->  | E72: =IFERROR(VLOOKUP($A72,البيانات!$B$2:$L$7,3,FALSE)*C:C,"") ->  | F72: =IFERROR(VLOOKUP($A72,البيانات!$B$2:$L$7,4,FALSE)*C:C,"") -> 
B73: =IFERROR(VLOOKUP($A73,البيانات!$B$2:$L$7,11,FALSE),"") ->  | D73: =IFERROR(VLOOKUP($A73,البيانات!$B$2:$L$7,2,FALSE)*C:C,"") ->  | E73: =IFERROR(VLOOKUP($A73,البيانات!$B$2:$L$7,3,FALSE)*C:C,"") ->  | F73: =IFERROR(VLOOKUP($A73,البيانات!$B$2:$L$7,4,FALSE)*C:C,"") -> 
B74: =IFERROR(VLOOKUP($A74,البيانات!$B$2:$L$7,11,FALSE),"") ->  | D74: =IFERROR(VLOOKUP($A74,البيانات!$B$2:$L$7,2,FALSE)*C:C,"") ->  | E74: =IFERROR(VLOOKUP($A74,البيانات!$B$2:$L$7,3,FALSE)*C:C,"") ->  | F74: =IFERROR(VLOOKUP($A74,البيانات!$B$2:$L$7,4,FALSE)*C:C,"") -> 
B75: =IFERROR(VLOOKUP($A75,البيانات!$B$2:$L$7,11,FALSE),"") ->  | D75: =IFERROR(VLOOKUP($A75,البيانات!$B$2:$L$7,2,FALSE)*C:C,"") ->  | E75: =IFERROR(VLOOKUP($A75,البيانات!$B$2:$L$7,3,FALSE)*C:C,"") ->  | F75: =IFERROR(VLOOKUP($A75,البيانات!$B$2:$L$7,4,FALSE)*C:C,"") -> 
B76: =IFERROR(VLOOKUP($A76,البيانات!$B$2:$L$7,11,FALSE),"") ->  | D76: =IFERROR(VLOOKUP($A76,البيانات!$B$2:$L$7,2,FALSE)*C:C,"") ->  | E76: =IFERROR(VLOOKUP($A76,البيانات!$B$2:$L$7,3,FALSE)*C:C,"") ->  | F76: =IFERROR(VLOOKUP($A76,البيانات!$B$2:$L$7,4,FALSE)*C:C,"") -> 
B77: =IFERROR(VLOOKUP($A77,البيانات!$B$2:$L$7,11,FALSE),"") ->  | D77: =IFERROR(VLOOKUP($A77,البيانات!$B$2:$L$7,2,FALSE)*C:C,"") ->  | E77: =IFERROR(VLOOKUP($A77,البيانات!$B$2:$L$7,3,FALSE)*C:C,"") ->  | F77: =IFERROR(VLOOKUP($A77,البيانات!$B$2:$L$7,4,FALSE)*C:C,"") -> 
B78: =IFERROR(VLOOKUP($A78,البيانات!$B$2:$L$7,11,FALSE),"") ->  | D78: =IFERROR(VLOOKUP($A78,البيانات!$B$2:$L$7,2,FALSE)*C:C,"") ->  | E78: =IFERROR(VLOOKUP($A78,البيانات!$B$2:$L$7,3,FALSE)*C:C,"") ->  | F78: =IFERROR(VLOOKUP($A78,البيانات!$B$2:$L$7,4,FALSE)*C:C,"") -> 
B79: =IFERROR(VLOOKUP($A79,البيانات!$B$2:$L$7,11,FALSE),"") ->  | D79: =IFERROR(VLOOKUP($A79,البيانات!$B$2:$L$7,2,FALSE)*C:C,"") ->  | E79: =IFERROR(VLOOKUP($A79,البيانات!$B$2:$L$7,3,FALSE)*C:C,"") ->  | F79: =IFERROR(VLOOKUP($A79,البيانات!$B$2:$L$7,4,FALSE)*C:C,"") -> 
B80: =IFERROR(VLOOKUP($A80,البيانات!$B$2:$L$7,11,FALSE),"") ->  | D80: =IFERROR(VLOOKUP($A80,البيانات!$B$2:$L$7,2,FALSE)*C:C,"") ->  | E80: =IFERROR(VLOOKUP($A80,البيانات!$B$2:$L$7,3,FALSE)*C:C,"") ->  | F80: =IFERROR(VLOOKUP($A80,البيانات!$B$2:$L$7,4,FALSE)*C:C,"") -> 
B81: =IFERROR(VLOOKUP($A81,البيانات!$B$2:$L$7,11,FALSE),"") ->  | D81: =IFERROR(VLOOKUP($A81,البيانات!$B$2:$L$7,2,FALSE)*C:C,"") ->  | E81: =IFERROR(VLOOKUP($A81,البيانات!$B$2:$L$7,3,FALSE)*C:C,"") ->  | F81: =IFERROR(VLOOKUP($A81,البيانات!$B$2:$L$7,4,FALSE)*C:C,"") -> 
B82: =IFERROR(VLOOKUP($A82,البيانات!$B$2:$L$7,11,FALSE),"") ->  | D82: =IFERROR(VLOOKUP($A82,البيانات!$B$2:$L$7,2,FALSE)*C:C,"") ->  | E82: =IFERROR(VLOOKUP($A82,البيانات!$B$2:$L$7,3,FALSE)*C:C,"") ->  | F82: =IFERROR(VLOOKUP($A82,البيانات!$B$2:$L$7,4,FALSE)*C:C,"") -> 
B83: =IFERROR(VLOOKUP($A83,البيانات!$B$2:$L$7,11,FALSE),"") ->  | D83: =IFERROR(VLOOKUP($A83,البيانات!$B$2:$L$7,2,FALSE)*C:C,"") ->  | E83: =IFERROR(VLOOKUP($A83,البيانات!$B$2:$L$7,3,FALSE)*C:C,"") ->  | F83: =IFERROR(VLOOKUP($A83,البيانات!$B$2:$L$7,4,FALSE)*C:C,"") -> 
B84: =IFERROR(VLOOKUP($A84,البيانات!$B$2:$L$7,11,FALSE),"") ->  | D84: =IFERROR(VLOOKUP($A84,البيانات!$B$2:$L$7,2,FALSE)*C:C,"") ->  | E84: =IFERROR(VLOOKUP($A84,البيانات!$B$2:$L$7,3,FALSE)*C:C,"") ->  | F84: =IFERROR(VLOOKUP($A84,البيانات!$B$2:$L$7,4,FALSE)*C:C,"") -> 
B85: =IFERROR(VLOOKUP($A85,البيانات!$B$2:$L$7,11,FALSE),"") ->  | D85: =IFERROR(VLOOKUP($A85,البيانات!$B$2:$L$7,2,FALSE)*C:C,"") ->  | E85: =IFERROR(VLOOKUP($A85,البيانات!$B$2:$L$7,3,FALSE)*C:C,"") ->  | F85: =IFERROR(VLOOKUP($A85,البيانات!$B$2:$L$7,4,FALSE)*C:C,"") -> 
B86: =IFERROR(VLOOKUP($A86,البيانات!$B$2:$L$7,11,FALSE),"") ->  | D86: =IFERROR(VLOOKUP($A86,البيانات!$B$2:$L$7,2,FALSE)*C:C,"") ->  | E86: =IFERROR(VLOOKUP($A86,البيانات!$B$2:$L$7,3,FALSE)*C:C,"") ->  | F86: =IFERROR(VLOOKUP($A86,البيانات!$B$2:$L$7,4,FALSE)*C:C,"") -> 
B87: =IFERROR(VLOOKUP($A87,البيانات!$B$2:$L$7,11,FALSE),"") ->  | D87: =IFERROR(VLOOKUP($A87,البيانات!$B$2:$L$7,2,FALSE)*C:C,"") ->  | E87: =IFERROR(VLOOKUP($A87,البيانات!$B$2:$L$7,3,FALSE)*C:C,"") ->  | F87: =IFERROR(VLOOKUP($A87,البيانات!$B$2:$L$7,4,FALSE)*C:C,"") -> 
B88: =IFERROR(VLOOKUP($A88,البيانات!$B$2:$L$7,11,FALSE),"") ->  | D88: =IFERROR(VLOOKUP($A88,البيانات!$B$2:$L$7,2,FALSE)*C:C,"") ->  | E88: =IFERROR(VLOOKUP($A88,البيانات!$B$2:$L$7,3,FALSE)*C:C,"") ->  | F88: =IFERROR(VLOOKUP($A88,البيانات!$B$2:$L$7,4,FALSE)*C:C,"") -> 
B89: =IFERROR(VLOOKUP($A89,البيانات!$B$2:$L$7,11,FALSE),"") ->  | D89: =IFERROR(VLOOKUP($A89,البيانات!$B$2:$L$7,2,FALSE)*C:C,"") ->  | E89: =IFERROR(VLOOKUP($A89,البيانات!$B$2:$L$7,3,FALSE)*C:C,"") ->  | F89: =IFERROR(VLOOKUP($A89,البيانات!$B$2:$L$7,4,FALSE)*C:C,"") -> 
B90: =IFERROR(VLOOKUP($A90,البيانات!$B$2:$L$7,11,FALSE),"") ->  | D90: =IFERROR(VLOOKUP($A90,البيانات!$B$2:$L$7,2,FALSE)*C:C,"") ->  | E90: =IFERROR(VLOOKUP($A90,البيانات!$B$2:$L$7,3,FALSE)*C:C,"") ->  | F90: =IFERROR(VLOOKUP($A90,البيانات!$B$2:$L$7,4,FALSE)*C:C,"") -> 
B91: =IFERROR(VLOOKUP($A91,البيانات!$B$2:$L$7,11,FALSE),"") ->  | D91: =IFERROR(VLOOKUP($A91,البيانات!$B$2:$L$7,2,FALSE)*C:C,"") ->  | E91: =IFERROR(VLOOKUP($A91,البيانات!$B$2:$L$7,3,FALSE)*C:C,"") ->  | F91: =IFERROR(VLOOKUP($A91,البيانات!$B$2:$L$7,4,FALSE)*C:C,"") -> 
B92: =IFERROR(VLOOKUP($A92,البيانات!$B$2:$L$7,11,FALSE),"") ->  | D92: =IFERROR(VLOOKUP($A92,البيانات!$B$2:$L$7,2,FALSE)*C:C,"") ->  | E92: =IFERROR(VLOOKUP($A92,البيانات!$B$2:$L$7,3,FALSE)*C:C,"") ->  | F92: =IFERROR(VLOOKUP($A92,البيانات!$B$2:$L$7,4,FALSE)*C:C,"") -> 
B93: =IFERROR(VLOOKUP($A93,البيانات!$B$2:$L$7,11,FALSE),"") ->  | D93: =IFERROR(VLOOKUP($A93,البيانات!$B$2:$L$7,2,FALSE)*C:C,"") ->  | E93: =IFERROR(VLOOKUP($A93,البيانات!$B$2:$L$7,3,FALSE)*C:C,"") ->  | F93: =IFERROR(VLOOKUP($A93,البيانات!$B$2:$L$7,4,FALSE)*C:C,"") -> 
B94: =IFERROR(VLOOKUP($A94,البيانات!$B$2:$L$7,11,FALSE),"") ->  | D94: =IFERROR(VLOOKUP($A94,البيانات!$B$2:$L$7,2,FALSE)*C:C,"") ->  | E94: =IFERROR(VLOOKUP($A94,البيانات!$B$2:$L$7,3,FALSE)*C:C,"") ->  | F94: =IFERROR(VLOOKUP($A94,البيانات!$B$2:$L$7,4,FALSE)*C:C,"") -> 
B95: =IFERROR(VLOOKUP($A95,البيانات!$B$2:$L$7,11,FALSE),"") ->  | D95: =IFERROR(VLOOKUP($A95,البيانات!$B$2:$L$7,2,FALSE)*C:C,"") ->  | E95: =IFERROR(VLOOKUP($A95,البيانات!$B$2:$L$7,3,FALSE)*C:C,"") ->  | F95: =IFERROR(VLOOKUP($A95,البيانات!$B$2:$L$7,4,FALSE)*C:C,"") -> 
B96: =IFERROR(VLOOKUP($A96,البيانات!$B$2:$L$7,11,FALSE),"") ->  | D96: =IFERROR(VLOOKUP($A96,البيانات!$B$2:$L$7,2,FALSE)*C:C,"") ->  | E96: =IFERROR(VLOOKUP($A96,البيانات!$B$2:$L$7,3,FALSE)*C:C,"") ->  | F96: =IFERROR(VLOOKUP($A96,البيانات!$B$2:$L$7,4,FALSE)*C:C,"") -> 
B97: =IFERROR(VLOOKUP($A97,البيانات!$B$2:$L$7,11,FALSE),"") ->  | D97: =IFERROR(VLOOKUP($A97,البيانات!$B$2:$L$7,2,FALSE)*C:C,"") ->  | E97: =IFERROR(VLOOKUP($A97,البيانات!$B$2:$L$7,3,FALSE)*C:C,"") ->  | F97: =IFERROR(VLOOKUP($A97,البيانات!$B$2:$L$7,4,FALSE)*C:C,"") -> 
B98: =IFERROR(VLOOKUP($A98,البيانات!$B$2:$L$7,11,FALSE),"") ->  | D98: =IFERROR(VLOOKUP($A98,البيانات!$B$2:$L$7,2,FALSE)*C:C,"") ->  | E98: =IFERROR(VLOOKUP($A98,البيانات!$B$2:$L$7,3,FALSE)*C:C,"") ->  | F98: =IFERROR(VLOOKUP($A98,البيانات!$B$2:$L$7,4,FALSE)*C:C,"") -> 
B99: =IFERROR(VLOOKUP($A99,البيانات!$B$2:$L$7,11,FALSE),"") ->  | D99: =IFERROR(VLOOKUP($A99,البيانات!$B$2:$L$7,2,FALSE)*C:C,"") ->  | E99: =IFERROR(VLOOKUP($A99,البيانات!$B$2:$L$7,3,FALSE)*C:C,"") ->  | F99: =IFERROR(VLOOKUP($A99,البيانات!$B$2:$L$7,4,FALSE)*C:C,"") -> 
B100: =IFERROR(VLOOKUP($A100,البيانات!$B$2:$L$7,11,FALSE),"") ->  | D100: =IFERROR(VLOOKUP($A100,البيانات!$B$2:$L$7,2,FALSE)*C:C,"") ->  | E100: =IFERROR(VLOOKUP($A100,البيانات!$B$2:$L$7,3,FALSE)*C:C,"") ->  | F100: =IFERROR(VLOOKUP($A100,البيانات!$B$2:$L$7,4,FALSE)*C:C,"") -> 
B101: =IFERROR(VLOOKUP($A101,البيانات!$B$2:$L$7,11,FALSE),"") ->  | D101: =IFERROR(VLOOKUP($A101,البيانات!$B$2:$L$7,2,FALSE)*C:C,"") ->  | E101: =IFERROR(VLOOKUP($A101,البيانات!$B$2:$L$7,3,FALSE)*C:C,"") ->  | F101: =IFERROR(VLOOKUP($A101,البيانات!$B$2:$L$7,4,FALSE)*C:C,"") -> 
B102: =IFERROR(VLOOKUP($A102,البيانات!$B$2:$L$7,11,FALSE),"") ->  | D102: =IFERROR(VLOOKUP($A102,البيانات!$B$2:$L$7,2,FALSE)*C:C,"") ->  | E102: =IFERROR(VLOOKUP($A102,البيانات!$B$2:$L$7,3,FALSE)*C:C,"") ->  | F102: =IFERROR(VLOOKUP($A102,البيانات!$B$2:$L$7,4,FALSE)*C:C,"") -> 
B103: =IFERROR(VLOOKUP($A103,البيانات!$B$2:$L$7,11,FALSE),"") ->  | D103: =IFERROR(VLOOKUP($A103,البيانات!$B$2:$L$7,2,FALSE)*C:C,"") ->  | E103: =IFERROR(VLOOKUP($A103,البيانات!$B$2:$L$7,3,FALSE)*C:C,"") ->  | F103: =IFERROR(VLOOKUP($A103,البيانات!$B$2:$L$7,4,FALSE)*C:C,"") -> 
B104: =IFERROR(VLOOKUP($A104,البيانات!$B$2:$L$7,11,FALSE),"") ->  | D104: =IFERROR(VLOOKUP($A104,البيانات!$B$2:$L$7,2,FALSE)*C:C,"") ->  | E104: =IFERROR(VLOOKUP($A104,البيانات!$B$2:$L$7,3,FALSE)*C:C,"") ->  | F104: =IFERROR(VLOOKUP($A104,البيانات!$B$2:$L$7,4,FALSE)*C:C,"") -> 
B105: =IFERROR(VLOOKUP($A105,البيانات!$B$2:$L$7,11,FALSE),"") ->  | D105: =IFERROR(VLOOKUP($A105,البيانات!$B$2:$L$7,2,FALSE)*C:C,"") ->  | E105: =IFERROR(VLOOKUP($A105,البيانات!$B$2:$L$7,3,FALSE)*C:C,"") ->  | F105: =IFERROR(VLOOKUP($A105,البيانات!$B$2:$L$7,4,FALSE)*C:C,"") -> 
B106: =IFERROR(VLOOKUP($A106,البيانات!$B$2:$L$7,11,FALSE),"") ->  | D106: =IFERROR(VLOOKUP($A106,البيانات!$B$2:$L$7,2,FALSE)*C:C,"") ->  | E106: =IFERROR(VLOOKUP($A106,البيانات!$B$2:$L$7,3,FALSE)*C:C,"") ->  | F106: =IFERROR(VLOOKUP($A106,البيانات!$B$2:$L$7,4,FALSE)*C:C,"") -> 
B107: =IFERROR(VLOOKUP($A107,البيانات!$B$2:$L$7,11,FALSE),"") ->  | D107: =IFERROR(VLOOKUP($A107,البيانات!$B$2:$L$7,2,FALSE)*C:C,"") ->  | E107: =IFERROR(VLOOKUP($A107,البيانات!$B$2:$L$7,3,FALSE)*C:C,"") ->  | F107: =IFERROR(VLOOKUP($A107,البيانات!$B$2:$L$7,4,FALSE)*C:C,"") -> 
B108: =IFERROR(VLOOKUP($A108,البيانات!$B$2:$L$7,11,FALSE),"") ->  | D108: =IFERROR(VLOOKUP($A108,البيانات!$B$2:$L$7,2,FALSE)*C:C,"") ->  | E108: =IFERROR(VLOOKUP($A108,البيانات!$B$2:$L$7,3,FALSE)*C:C,"") ->  | F108: =IFERROR(VLOOKUP($A108,البيانات!$B$2:$L$7,4,FALSE)*C:C,"") -> 
B109: =IFERROR(VLOOKUP($A109,البيانات!$B$2:$L$7,11,FALSE),"") ->  | D109: =IFERROR(VLOOKUP($A109,البيانات!$B$2:$L$7,2,FALSE)*C:C,"") ->  | E109: =IFERROR(VLOOKUP($A109,البيانات!$B$2:$L$7,3,FALSE)*C:C,"") ->  | F109: =IFERROR(VLOOKUP($A109,البيانات!$B$2:$L$7,4,FALSE)*C:C,"") -> 
B110: =IFERROR(VLOOKUP($A110,البيانات!$B$2:$L$7,11,FALSE),"") ->  | D110: =IFERROR(VLOOKUP($A110,البيانات!$B$2:$L$7,2,FALSE)*C:C,"") ->  | E110: =IFERROR(VLOOKUP($A110,البيانات!$B$2:$L$7,3,FALSE)*C:C,"") ->  | F110: =IFERROR(VLOOKUP($A110,البيانات!$B$2:$L$7,4,FALSE)*C:C,"") -> 
B111: =IFERROR(VLOOKUP($A111,البيانات!$B$2:$L$7,11,FALSE),"") ->  | D111: =IFERROR(VLOOKUP($A111,البيانات!$B$2:$L$7,2,FALSE)*C:C,"") ->  | E111: =IFERROR(VLOOKUP($A111,البيانات!$B$2:$L$7,3,FALSE)*C:C,"") ->  | F111: =IFERROR(VLOOKUP($A111,البيانات!$B$2:$L$7,4,FALSE)*C:C,"") -> 
B112: =IFERROR(VLOOKUP($A112,البيانات!$B$2:$L$7,11,FALSE),"") ->  | D112: =IFERROR(VLOOKUP($A112,البيانات!$B$2:$L$7,2,FALSE)*C:C,"") ->  | E112: =IFERROR(VLOOKUP($A112,البيانات!$B$2:$L$7,3,FALSE)*C:C,"") ->  | F112: =IFERROR(VLOOKUP($A112,البيانات!$B$2:$L$7,4,FALSE)*C:C,"") -> 
B113: =IFERROR(VLOOKUP($A113,البيانات!$B$2:$L$7,11,FALSE),"") ->  | D113: =IFERROR(VLOOKUP($A113,البيانات!$B$2:$L$7,2,FALSE)*C:C,"") ->  | E113: =IFERROR(VLOOKUP($A113,البيانات!$B$2:$L$7,3,FALSE)*C:C,"") ->  | F113: =IFERROR(VLOOKUP($A113,البيانات!$B$2:$L$7,4,FALSE)*C:C,"") -> 
B114: =IFERROR(VLOOKUP($A114,البيانات!$B$2:$L$7,11,FALSE),"") ->  | D114: =IFERROR(VLOOKUP($A114,البيانات!$B$2:$L$7,2,FALSE)*C:C,"") ->  | E114: =IFERROR(VLOOKUP($A114,البيانات!$B$2:$L$7,3,FALSE)*C:C,"") ->  | F114: =IFERROR(VLOOKUP($A114,البيانات!$B$2:$L$7,4,FALSE)*C:C,"") -> 
B115: =IFERROR(VLOOKUP($A115,البيانات!$B$2:$L$7,11,FALSE),"") ->  | D115: =IFERROR(VLOOKUP($A115,البيانات!$B$2:$L$7,2,FALSE)*C:C,"") ->  | E115: =IFERROR(VLOOKUP($A115,البيانات!$B$2:$L$7,3,FALSE)*C:C,"") ->  | F115: =IFERROR(VLOOKUP($A115,البيانات!$B$2:$L$7,4,FALSE)*C:C,"") -> 
B116: =IFERROR(VLOOKUP($A116,البيانات!$B$2:$L$7,11,FALSE),"") ->  | D116: =IFERROR(VLOOKUP($A116,البيانات!$B$2:$L$7,2,FALSE)*C:C,"") ->  | E116: =IFERROR(VLOOKUP($A116,البيانات!$B$2:$L$7,3,FALSE)*C:C,"") ->  | F116: =IFERROR(VLOOKUP($A116,البيانات!$B$2:$L$7,4,FALSE)*C:C,"") -> 
B117: =IFERROR(VLOOKUP($A117,البيانات!$B$2:$L$7,11,FALSE),"") ->  | D117: =IFERROR(VLOOKUP($A117,البيانات!$B$2:$L$7,2,FALSE)*C:C,"") ->  | E117: =IFERROR(VLOOKUP($A117,البيانات!$B$2:$L$7,3,FALSE)*C:C,"") ->  | F117: =IFERROR(VLOOKUP($A117,البيانات!$B$2:$L$7,4,FALSE)*C:C,"") -> 
B118: =IFERROR(VLOOKUP($A118,البيانات!$B$2:$L$7,11,FALSE),"") ->  | D118: =IFERROR(VLOOKUP($A118,البيانات!$B$2:$L$7,2,FALSE)*C:C,"") ->  | E118: =IFERROR(VLOOKUP($A118,البيانات!$B$2:$L$7,3,FALSE)*C:C,"") ->  | F118: =IFERROR(VLOOKUP($A118,البيانات!$B$2:$L$7,4,FALSE)*C:C,"") -> 
B119: =IFERROR(VLOOKUP($A119,البيانات!$B$2:$L$7,11,FALSE),"") ->  | D119: =IFERROR(VLOOKUP($A119,البيانات!$B$2:$L$7,2,FALSE)*C:C,"") ->  | E119: =IFERROR(VLOOKUP($A119,البيانات!$B$2:$L$7,3,FALSE)*C:C,"") ->  | F119: =IFERROR(VLOOKUP($A119,البيانات!$B$2:$L$7,4,FALSE)*C:C,"") -> 
B120: =IFERROR(VLOOKUP($A120,البيانات!$B$2:$L$7,11,FALSE),"") ->  | D120: =IFERROR(VLOOKUP($A120,البيانات!$B$2:$L$7,2,FALSE)*C:C,"") ->  | E120: =IFERROR(VLOOKUP($A120,البيانات!$B$2:$L$7,3,FALSE)*C:C,"") ->  | F120: =IFERROR(VLOOKUP($A120,البيانات!$B$2:$L$7,4,FALSE)*C:C,"") ->  | G120: =IFERROR(C120*B120,"") -> 
B121: =IFERROR(VLOOKUP($A121,البيانات!$B$2:$L$7,11,FALSE),"") ->  | D121: =IFERROR(VLOOKUP($A121,البيانات!$B$2:$L$7,2,FALSE)*C:C,"") ->  | E121: =IFERROR(VLOOKUP($A121,البيانات!$B$2:$L$7,3,FALSE)*C:C,"") ->  | F121: =IFERROR(VLOOKUP($A121,البيانات!$B$2:$L$7,4,FALSE)*C:C,"") -> 
B122: =IFERROR(VLOOKUP($A122,البيانات!$B$2:$L$7,11,FALSE),"") ->  | D122: =IFERROR(VLOOKUP($A122,البيانات!$B$2:$L$7,2,FALSE)*C:C,"") ->  | E122: =IFERROR(VLOOKUP($A122,البيانات!$B$2:$L$7,3,FALSE)*C:C,"") ->  | F122: =IFERROR(VLOOKUP($A122,البيانات!$B$2:$L$7,4,FALSE)*C:C,"") -> 
B123: =IFERROR(VLOOKUP($A123,البيانات!$B$2:$L$7,11,FALSE),"") ->  | D123: =IFERROR(VLOOKUP($A123,البيانات!$B$2:$L$7,2,FALSE)*C:C,"") ->  | E123: =IFERROR(VLOOKUP($A123,البيانات!$B$2:$L$7,3,FALSE)*C:C,"") ->  | F123: =IFERROR(VLOOKUP($A123,البيانات!$B$2:$L$7,4,FALSE)*C:C,"") -> 
B124: =IFERROR(VLOOKUP($A124,البيانات!$B$2:$L$7,11,FALSE),"") ->  | D124: =IFERROR(VLOOKUP($A124,البيانات!$B$2:$L$7,2,FALSE)*C:C,"") ->  | E124: =IFERROR(VLOOKUP($A124,البيانات!$B$2:$L$7,3,FALSE)*C:C,"") ->  | F124: =IFERROR(VLOOKUP($A124,البيانات!$B$2:$L$7,4,FALSE)*C:C,"") -> 
B125: =IFERROR(VLOOKUP($A125,البيانات!$B$2:$L$7,11,FALSE),"") ->  | D125: =IFERROR(VLOOKUP($A125,البيانات!$B$2:$L$7,2,FALSE)*C:C,"") ->  | E125: =IFERROR(VLOOKUP($A125,البيانات!$B$2:$L$7,3,FALSE)*C:C,"") ->  | F125: =IFERROR(VLOOKUP($A125,البيانات!$B$2:$L$7,4,FALSE)*C:C,"") -> 
B126: =IFERROR(VLOOKUP($A126,البيانات!$B$2:$L$7,11,FALSE),"") ->  | D126: =IFERROR(VLOOKUP($A126,البيانات!$B$2:$L$7,2,FALSE)*C:C,"") ->  | E126: =IFERROR(VLOOKUP($A126,البيانات!$B$2:$L$7,3,FALSE)*C:C,"") ->  | F126: =IFERROR(VLOOKUP($A126,البيانات!$B$2:$L$7,4,FALSE)*C:C,"") -> 
B127: =IFERROR(VLOOKUP($A127,البيانات!$B$2:$L$7,11,FALSE),"") ->  | D127: =IFERROR(VLOOKUP($A127,البيانات!$B$2:$L$7,2,FALSE)*C:C,"") ->  | E127: =IFERROR(VLOOKUP($A127,البيانات!$B$2:$L$7,3,FALSE)*C:C,"") ->  | F127: =IFERROR(VLOOKUP($A127,البيانات!$B$2:$L$7,4,FALSE)*C:C,"") -> 
B128: =IFERROR(VLOOKUP($A128,البيانات!$B$2:$L$7,11,FALSE),"") ->  | D128: =IFERROR(VLOOKUP($A128,البيانات!$B$2:$L$7,2,FALSE)*C:C,"") ->  | E128: =IFERROR(VLOOKUP($A128,البيانات!$B$2:$L$7,3,FALSE)*C:C,"") ->  | F128: =IFERROR(VLOOKUP($A128,البيانات!$B$2:$L$7,4,FALSE)*C:C,"") -> 
B129: =IFERROR(VLOOKUP($A129,البيانات!$B$2:$L$7,11,FALSE),"") ->  | D129: =IFERROR(VLOOKUP($A129,البيانات!$B$2:$L$7,2,FALSE)*C:C,"") ->  | E129: =IFERROR(VLOOKUP($A129,البيانات!$B$2:$L$7,3,FALSE)*C:C,"") ->  | F129: =IFERROR(VLOOKUP($A129,البيانات!$B$2:$L$7,4,FALSE)*C:C,"") -> 
B130: =IFERROR(VLOOKUP($A130,البيانات!$B$2:$L$7,11,FALSE),"") ->  | D130: =IFERROR(VLOOKUP($A130,البيانات!$B$2:$L$7,2,FALSE)*C:C,"") ->  | E130: =IFERROR(VLOOKUP($A130,البيانات!$B$2:$L$7,3,FALSE)*C:C,"") ->  | F130: =IFERROR(VLOOKUP($A130,البيانات!$B$2:$L$7,4,FALSE)*C:C,"") -> 
B131: =IFERROR(VLOOKUP($A131,البيانات!$B$2:$L$7,11,FALSE),"") ->  | D131: =IFERROR(VLOOKUP($A131,البيانات!$B$2:$L$7,2,FALSE)*C:C,"") ->  | E131: =IFERROR(VLOOKUP($A131,البيانات!$B$2:$L$7,3,FALSE)*C:C,"") ->  | F131: =IFERROR(VLOOKUP($A131,البيانات!$B$2:$L$7,4,FALSE)*C:C,"") -> 
B132: =IFERROR(VLOOKUP($A132,البيانات!$B$2:$L$7,11,FALSE),"") ->  | D132: =IFERROR(VLOOKUP($A132,البيانات!$B$2:$L$7,2,FALSE)*C:C,"") ->  | E132: =IFERROR(VLOOKUP($A132,البيانات!$B$2:$L$7,3,FALSE)*C:C,"") ->  | F132: =IFERROR(VLOOKUP($A132,البيانات!$B$2:$L$7,4,FALSE)*C:C,"") -> 
B133: =IFERROR(VLOOKUP($A133,البيانات!$B$2:$L$7,11,FALSE),"") ->  | D133: =IFERROR(VLOOKUP($A133,البيانات!$B$2:$L$7,2,FALSE)*C:C,"") ->  | E133: =IFERROR(VLOOKUP($A133,البيانات!$B$2:$L$7,3,FALSE)*C:C,"") ->  | F133: =IFERROR(VLOOKUP($A133,البيانات!$B$2:$L$7,4,FALSE)*C:C,"") ->  | I133: =IFERROR(H133-G133,"") -> 
B134: =IFERROR(VLOOKUP($A134,البيانات!$B$2:$L$7,11,FALSE),"") ->  | D134: =IFERROR(VLOOKUP($A134,البيانات!$B$2:$L$7,2,FALSE)*C:C,"") ->  | E134: =IFERROR(VLOOKUP($A134,البيانات!$B$2:$L$7,3,FALSE)*C:C,"") ->  | F134: =IFERROR(VLOOKUP($A134,البيانات!$B$2:$L$7,4,FALSE)*C:C,"") -> 
B135: =IFERROR(VLOOKUP($A135,البيانات!$B$2:$L$7,11,FALSE),"") ->  | D135: =IFERROR(VLOOKUP($A135,البيانات!$B$2:$L$7,2,FALSE)*C:C,"") ->  | E135: =IFERROR(VLOOKUP($A135,البيانات!$B$2:$L$7,3,FALSE)*C:C,"") ->  | F135: =IFERROR(VLOOKUP($A135,البيانات!$B$2:$L$7,4,FALSE)*C:C,"") -> 
B136: =IFERROR(VLOOKUP($A136,البيانات!$B$2:$L$7,11,FALSE),"") ->  | D136: =IFERROR(VLOOKUP($A136,البيانات!$B$2:$L$7,2,FALSE)*C:C,"") ->  | E136: =IFERROR(VLOOKUP($A136,البيانات!$B$2:$L$7,3,FALSE)*C:C,"") ->  | F136: =IFERROR(VLOOKUP($A136,البيانات!$B$2:$L$7,4,FALSE)*C:C,"") -> 
B137: =IFERROR(VLOOKUP($A137,البيانات!$B$2:$L$7,11,FALSE),"") ->  | D137: =IFERROR(VLOOKUP($A137,البيانات!$B$2:$L$7,2,FALSE)*C:C,"") ->  | E137: =IFERROR(VLOOKUP($A137,البيانات!$B$2:$L$7,3,FALSE)*C:C,"") ->  | F137: =IFERROR(VLOOKUP($A137,البيانات!$B$2:$L$7,4,FALSE)*C:C,"") -> 
B138: =IFERROR(VLOOKUP($A138,البيانات!$B$2:$L$7,11,FALSE),"") ->  | D138: =IFERROR(VLOOKUP($A138,البيانات!$B$2:$L$7,2,FALSE)*C:C,"") ->  | E138: =IFERROR(VLOOKUP($A138,البيانات!$B$2:$L$7,3,FALSE)*C:C,"") ->  | F138: =IFERROR(VLOOKUP($A138,البيانات!$B$2:$L$7,4,FALSE)*C:C,"") -> 
B139: =IFERROR(VLOOKUP($A139,البيانات!$B$2:$L$7,11,FALSE),"") ->  | D139: =IFERROR(VLOOKUP($A139,البيانات!$B$2:$L$7,2,FALSE)*C:C,"") ->  | E139: =IFERROR(VLOOKUP($A139,البيانات!$B$2:$L$7,3,FALSE)*C:C,"") ->  | F139: =IFERROR(VLOOKUP($A139,البيانات!$B$2:$L$7,4,FALSE)*C:C,"") -> 
B140: =IFERROR(VLOOKUP($A140,البيانات!$B$2:$L$7,11,FALSE),"") ->  | D140: =IFERROR(VLOOKUP($A140,البيانات!$B$2:$L$7,2,FALSE)*C:C,"") ->  | E140: =IFERROR(VLOOKUP($A140,البيانات!$B$2:$L$7,3,FALSE)*C:C,"") ->  | F140: =IFERROR(VLOOKUP($A140,البيانات!$B$2:$L$7,4,FALSE)*C:C,"") -> 
B141: =IFERROR(VLOOKUP($A141,البيانات!$B$2:$L$7,11,FALSE),"") ->  | D141: =IFERROR(VLOOKUP($A141,البيانات!$B$2:$L$7,2,FALSE)*C:C,"") ->  | E141: =IFERROR(VLOOKUP($A141,البيانات!$B$2:$L$7,3,FALSE)*C:C,"") ->  | F141: =IFERROR(VLOOKUP($A141,البيانات!$B$2:$L$7,4,FALSE)*C:C,"") -> 
B142: =IFERROR(VLOOKUP($A142,البيانات!$B$2:$L$7,11,FALSE),"") ->  | D142: =IFERROR(VLOOKUP($A142,البيانات!$B$2:$L$7,2,FALSE)*C:C,"") ->  | E142: =IFERROR(VLOOKUP($A142,البيانات!$B$2:$L$7,3,FALSE)*C:C,"") ->  | F142: =IFERROR(VLOOKUP($A142,البيانات!$B$2:$L$7,4,FALSE)*C:C,"") -> 
B143: =IFERROR(VLOOKUP($A143,البيانات!$B$2:$L$7,11,FALSE),"") ->  | D143: =IFERROR(VLOOKUP($A143,البيانات!$B$2:$L$7,2,FALSE)*C:C,"") ->  | E143: =IFERROR(VLOOKUP($A143,البيانات!$B$2:$L$7,3,FALSE)*C:C,"") ->  | F143: =IFERROR(VLOOKUP($A143,البيانات!$B$2:$L$7,4,FALSE)*C:C,"") -> 
B144: =IFERROR(VLOOKUP($A144,البيانات!$B$2:$L$7,11,FALSE),"") ->  | D144: =IFERROR(VLOOKUP($A144,البيانات!$B$2:$L$7,2,FALSE)*C:C,"") ->  | E144: =IFERROR(VLOOKUP($A144,البيانات!$B$2:$L$7,3,FALSE)*C:C,"") ->  | F144: =IFERROR(VLOOKUP($A144,البيانات!$B$2:$L$7,4,FALSE)*C:C,"") -> 
B145: =IFERROR(VLOOKUP($A145,البيانات!$B$2:$L$7,11,FALSE),"") ->  | D145: =IFERROR(VLOOKUP($A145,البيانات!$B$2:$L$7,2,FALSE)*C:C,"") ->  | E145: =IFERROR(VLOOKUP($A145,البيانات!$B$2:$L$7,3,FALSE)*C:C,"") ->  | F145: =IFERROR(VLOOKUP($A145,البيانات!$B$2:$L$7,4,FALSE)*C:C,"") -> 
B146: =IFERROR(VLOOKUP($A146,البيانات!$B$2:$L$7,11,FALSE),"") ->  | D146: =IFERROR(VLOOKUP($A146,البيانات!$B$2:$L$7,2,FALSE)*C:C,"") ->  | E146: =IFERROR(VLOOKUP($A146,البيانات!$B$2:$L$7,3,FALSE)*C:C,"") ->  | F146: =IFERROR(VLOOKUP($A146,البيانات!$B$2:$L$7,4,FALSE)*C:C,"") -> 
B147: =IFERROR(VLOOKUP($A147,البيانات!$B$2:$L$7,11,FALSE),"") ->  | D147: =IFERROR(VLOOKUP($A147,البيانات!$B$2:$L$7,2,FALSE)*C:C,"") ->  | E147: =IFERROR(VLOOKUP($A147,البيانات!$B$2:$L$7,3,FALSE)*C:C,"") ->  | F147: =IFERROR(VLOOKUP($A147,البيانات!$B$2:$L$7,4,FALSE)*C:C,"") -> 
B148: =IFERROR(VLOOKUP($A148,البيانات!$B$2:$L$7,11,FALSE),"") ->  | D148: =IFERROR(VLOOKUP($A148,البيانات!$B$2:$L$7,2,FALSE)*C:C,"") ->  | E148: =IFERROR(VLOOKUP($A148,البيانات!$B$2:$L$7,3,FALSE)*C:C,"") ->  | F148: =IFERROR(VLOOKUP($A148,البيانات!$B$2:$L$7,4,FALSE)*C:C,"") -> 
B149: =IFERROR(VLOOKUP($A149,البيانات!$B$2:$L$7,11,FALSE),"") ->  | D149: =IFERROR(VLOOKUP($A149,البيانات!$B$2:$L$7,2,FALSE)*C:C,"") ->  | E149: =IFERROR(VLOOKUP($A149,البيانات!$B$2:$L$7,3,FALSE)*C:C,"") ->  | F149: =IFERROR(VLOOKUP($A149,البيانات!$B$2:$L$7,4,FALSE)*C:C,"") -> 
B150: =IFERROR(VLOOKUP($A150,البيانات!$B$2:$L$7,11,FALSE),"") ->  | D150: =IFERROR(VLOOKUP($A150,البيانات!$B$2:$L$7,2,FALSE)*C:C,"") ->  | E150: =IFERROR(VLOOKUP($A150,البيانات!$B$2:$L$7,3,FALSE)*C:C,"") ->  | F150: =IFERROR(VLOOKUP($A150,البيانات!$B$2:$L$7,4,FALSE)*C:C,"") -> 
B151: =IFERROR(VLOOKUP($A151,البيانات!$B$2:$L$7,11,FALSE),"") ->  | D151: =IFERROR(VLOOKUP($A151,البيانات!$B$2:$L$7,2,FALSE)*C:C,"") ->  | E151: =IFERROR(VLOOKUP($A151,البيانات!$B$2:$L$7,3,FALSE)*C:C,"") ->  | F151: =IFERROR(VLOOKUP($A151,البيانات!$B$2:$L$7,4,FALSE)*C:C,"") -> 
B152: =IFERROR(VLOOKUP($A152,البيانات!$B$2:$L$7,11,FALSE),"") ->  | D152: =IFERROR(VLOOKUP($A152,البيانات!$B$2:$L$7,2,FALSE)*C:C,"") ->  | E152: =IFERROR(VLOOKUP($A152,البيانات!$B$2:$L$7,3,FALSE)*C:C,"") ->  | F152: =IFERROR(VLOOKUP($A152,البيانات!$B$2:$L$7,4,FALSE)*C:C,"") -> 
B153: =IFERROR(VLOOKUP($A153,البيانات!$B$2:$L$7,11,FALSE),"") ->  | D153: =IFERROR(VLOOKUP($A153,البيانات!$B$2:$L$7,2,FALSE)*C:C,"") ->  | E153: =IFERROR(VLOOKUP($A153,البيانات!$B$2:$L$7,3,FALSE)*C:C,"") ->  | F153: =IFERROR(VLOOKUP($A153,البيانات!$B$2:$L$7,4,FALSE)*C:C,"") -> 
B154: =IFERROR(VLOOKUP($A154,البيانات!$B$2:$L$7,11,FALSE),"") ->  | D154: =IFERROR(VLOOKUP($A154,البيانات!$B$2:$L$7,2,FALSE)*C:C,"") ->  | E154: =IFERROR(VLOOKUP($A154,البيانات!$B$2:$L$7,3,FALSE)*C:C,"") ->  | F154: =IFERROR(VLOOKUP($A154,البيانات!$B$2:$L$7,4,FALSE)*C:C,"") -> 
B155: =IFERROR(VLOOKUP($A155,البيانات!$B$2:$L$7,11,FALSE),"") ->  | D155: =IFERROR(VLOOKUP($A155,البيانات!$B$2:$L$7,2,FALSE)*C:C,"") ->  | E155: =IFERROR(VLOOKUP($A155,البيانات!$B$2:$L$7,3,FALSE)*C:C,"") ->  | F155: =IFERROR(VLOOKUP($A155,البيانات!$B$2:$L$7,4,FALSE)*C:C,"") -> 
B156: =IFERROR(VLOOKUP($A156,البيانات!$B$2:$L$7,11,FALSE),"") ->  | D156: =IFERROR(VLOOKUP($A156,البيانات!$B$2:$L$7,2,FALSE)*C:C,"") ->  | E156: =IFERROR(VLOOKUP($A156,البيانات!$B$2:$L$7,3,FALSE)*C:C,"") ->  | F156: =IFERROR(VLOOKUP($A156,البيانات!$B$2:$L$7,4,FALSE)*C:C,"") -> 
B157: =IFERROR(VLOOKUP($A157,البيانات!$B$2:$L$7,11,FALSE),"") ->  | D157: =IFERROR(VLOOKUP($A157,البيانات!$B$2:$L$7,2,FALSE)*C:C,"") ->  | E157: =IFERROR(VLOOKUP($A157,البيانات!$B$2:$L$7,3,FALSE)*C:C,"") ->  | F157: =IFERROR(VLOOKUP($A157,البيانات!$B$2:$L$7,4,FALSE)*C:C,"") -> 
B158: =IFERROR(VLOOKUP($A158,البيانات!$B$2:$L$7,11,FALSE),"") ->  | D158: =IFERROR(VLOOKUP($A158,البيانات!$B$2:$L$7,2,FALSE)*C:C,"") ->  | E158: =IFERROR(VLOOKUP($A158,البيانات!$B$2:$L$7,3,FALSE)*C:C,"") ->  | F158: =IFERROR(VLOOKUP($A158,البيانات!$B$2:$L$7,4,FALSE)*C:C,"") -> 
B159: =IFERROR(VLOOKUP($A159,البيانات!$B$2:$L$7,11,FALSE),"") ->  | D159: =IFERROR(VLOOKUP($A159,البيانات!$B$2:$L$7,2,FALSE)*C:C,"") ->  | E159: =IFERROR(VLOOKUP($A159,البيانات!$B$2:$L$7,3,FALSE)*C:C,"") ->  | F159: =IFERROR(VLOOKUP($A159,البيانات!$B$2:$L$7,4,FALSE)*C:C,"") -> 
B160: =IFERROR(VLOOKUP($A160,البيانات!$B$2:$L$7,11,FALSE),"") ->  | D160: =IFERROR(VLOOKUP($A160,البيانات!$B$2:$L$7,2,FALSE)*C:C,"") ->  | E160: =IFERROR(VLOOKUP($A160,البيانات!$B$2:$L$7,3,FALSE)*C:C,"") ->  | F160: =IFERROR(VLOOKUP($A160,البيانات!$B$2:$L$7,4,FALSE)*C:C,"") -> 
B161: =IFERROR(VLOOKUP($A161,البيانات!$B$2:$L$7,11,FALSE),"") ->  | D161: =IFERROR(VLOOKUP($A161,البيانات!$B$2:$L$7,2,FALSE)*C:C,"") ->  | E161: =IFERROR(VLOOKUP($A161,البيانات!$B$2:$L$7,3,FALSE)*C:C,"") ->  | F161: =IFERROR(VLOOKUP($A161,البيانات!$B$2:$L$7,4,FALSE)*C:C,"") -> 
B162: =IFERROR(VLOOKUP($A162,البيانات!$B$2:$L$7,11,FALSE),"") ->  | D162: =IFERROR(VLOOKUP($A162,البيانات!$B$2:$L$7,2,FALSE)*C:C,"") ->  | E162: =IFERROR(VLOOKUP($A162,البيانات!$B$2:$L$7,3,FALSE)*C:C,"") ->  | F162: =IFERROR(VLOOKUP($A162,البيانات!$B$2:$L$7,4,FALSE)*C:C,"") -> 
B163: =IFERROR(VLOOKUP($A163,البيانات!$B$2:$L$7,11,FALSE),"") ->  | D163: =IFERROR(VLOOKUP($A163,البيانات!$B$2:$L$7,2,FALSE)*C:C,"") ->  | E163: =IFERROR(VLOOKUP($A163,البيانات!$B$2:$L$7,3,FALSE)*C:C,"") ->  | F163: =IFERROR(VLOOKUP($A163,البيانات!$B$2:$L$7,4,FALSE)*C:C,"") -> 
B164: =IFERROR(VLOOKUP($A164,البيانات!$B$2:$L$7,11,FALSE),"") ->  | D164: =IFERROR(VLOOKUP($A164,البيانات!$B$2:$L$7,2,FALSE)*C:C,"") ->  | E164: =IFERROR(VLOOKUP($A164,البيانات!$B$2:$L$7,3,FALSE)*C:C,"") ->  | F164: =IFERROR(VLOOKUP($A164,البيانات!$B$2:$L$7,4,FALSE)*C:C,"") -> 
B165: =IFERROR(VLOOKUP($A165,البيانات!$B$2:$L$7,11,FALSE),"") ->  | D165: =IFERROR(VLOOKUP($A165,البيانات!$B$2:$L$7,2,FALSE)*C:C,"") ->  | E165: =IFERROR(VLOOKUP($A165,البيانات!$B$2:$L$7,3,FALSE)*C:C,"") ->  | F165: =IFERROR(VLOOKUP($A165,البيانات!$B$2:$L$7,4,FALSE)*C:C,"") -> 
B166: =IFERROR(VLOOKUP($A166,البيانات!$B$2:$L$7,11,FALSE),"") ->  | D166: =IFERROR(VLOOKUP($A166,البيانات!$B$2:$L$7,2,FALSE)*C:C,"") ->  | E166: =IFERROR(VLOOKUP($A166,البيانات!$B$2:$L$7,3,FALSE)*C:C,"") ->  | F166: =IFERROR(VLOOKUP($A166,البيانات!$B$2:$L$7,4,FALSE)*C:C,"") -> 
B167: =IFERROR(VLOOKUP($A167,البيانات!$B$2:$L$7,11,FALSE),"") ->  | D167: =IFERROR(VLOOKUP($A167,البيانات!$B$2:$L$7,2,FALSE)*C:C,"") ->  | E167: =IFERROR(VLOOKUP($A167,البيانات!$B$2:$L$7,3,FALSE)*C:C,"") ->  | F167: =IFERROR(VLOOKUP($A167,البيانات!$B$2:$L$7,4,FALSE)*C:C,"") -> 
B168: =IFERROR(VLOOKUP($A168,البيانات!$B$2:$L$7,11,FALSE),"") ->  | D168: =IFERROR(VLOOKUP($A168,البيانات!$B$2:$L$7,2,FALSE)*C:C,"") ->  | E168: =IFERROR(VLOOKUP($A168,البيانات!$B$2:$L$7,3,FALSE)*C:C,"") ->  | F168: =IFERROR(VLOOKUP($A168,البيانات!$B$2:$L$7,4,FALSE)*C:C,"") -> 
B169: =IFERROR(VLOOKUP($A169,البيانات!$B$2:$L$7,11,FALSE),"") ->  | D169: =IFERROR(VLOOKUP($A169,البيانات!$B$2:$L$7,2,FALSE)*C:C,"") ->  | E169: =IFERROR(VLOOKUP($A169,البيانات!$B$2:$L$7,3,FALSE)*C:C,"") ->  | F169: =IFERROR(VLOOKUP($A169,البيانات!$B$2:$L$7,4,FALSE)*C:C,"") -> 
B170: =IFERROR(VLOOKUP($A170,البيانات!$B$2:$L$7,11,FALSE),"") ->  | D170: =IFERROR(VLOOKUP($A170,البيانات!$B$2:$L$7,2,FALSE)*C:C,"") ->  | E170: =IFERROR(VLOOKUP($A170,البيانات!$B$2:$L$7,3,FALSE)*C:C,"") ->  | F170: =IFERROR(VLOOKUP($A170,البيانات!$B$2:$L$7,4,FALSE)*C:C,"") -> 
B171: =IFERROR(VLOOKUP($A171,البيانات!$B$2:$L$7,11,FALSE),"") ->  | D171: =IFERROR(VLOOKUP($A171,البيانات!$B$2:$L$7,2,FALSE)*C:C,"") ->  | E171: =IFERROR(VLOOKUP($A171,البيانات!$B$2:$L$7,3,FALSE)*C:C,"") ->  | F171: =IFERROR(VLOOKUP($A171,البيانات!$B$2:$L$7,4,FALSE)*C:C,"") -> 
B172: =IFERROR(VLOOKUP($A172,البيانات!$B$2:$L$7,11,FALSE),"") ->  | D172: =IFERROR(VLOOKUP($A172,البيانات!$B$2:$L$7,2,FALSE)*C:C,"") ->  | E172: =IFERROR(VLOOKUP($A172,البيانات!$B$2:$L$7,3,FALSE)*C:C,"") ->  | F172: =IFERROR(VLOOKUP($A172,البيانات!$B$2:$L$7,4,FALSE)*C:C,"") -> 
B173: =IFERROR(VLOOKUP($A173,البيانات!$B$2:$L$7,11,FALSE),"") ->  | D173: =IFERROR(VLOOKUP($A173,البيانات!$B$2:$L$7,2,FALSE)*C:C,"") ->  | E173: =IFERROR(VLOOKUP($A173,البيانات!$B$2:$L$7,3,FALSE)*C:C,"") ->  | F173: =IFERROR(VLOOKUP($A173,البيانات!$B$2:$L$7,4,FALSE)*C:C,"") -> 
B174: =IFERROR(VLOOKUP($A174,البيانات!$B$2:$L$7,11,FALSE),"") ->  | D174: =IFERROR(VLOOKUP($A174,البيانات!$B$2:$L$7,2,FALSE)*C:C,"") ->  | E174: =IFERROR(VLOOKUP($A174,البيانات!$B$2:$L$7,3,FALSE)*C:C,"") ->  | F174: =IFERROR(VLOOKUP($A174,البيانات!$B$2:$L$7,4,FALSE)*C:C,"") -> 
B175: =IFERROR(VLOOKUP($A175,البيانات!$B$2:$L$7,11,FALSE),"") ->  | D175: =IFERROR(VLOOKUP($A175,البيانات!$B$2:$L$7,2,FALSE)*C:C,"") ->  | E175: =IFERROR(VLOOKUP($A175,البيانات!$B$2:$L$7,3,FALSE)*C:C,"") ->  | F175: =IFERROR(VLOOKUP($A175,البيانات!$B$2:$L$7,4,FALSE)*C:C,"") -> 
B176: =IFERROR(VLOOKUP($A176,البيانات!$B$2:$L$7,11,FALSE),"") ->  | D176: =IFERROR(VLOOKUP($A176,البيانات!$B$2:$L$7,2,FALSE)*C:C,"") ->  | E176: =IFERROR(VLOOKUP($A176,البيانات!$B$2:$L$7,3,FALSE)*C:C,"") ->  | F176: =IFERROR(VLOOKUP($A176,البيانات!$B$2:$L$7,4,FALSE)*C:C,"") -> 
B177: =IFERROR(VLOOKUP($A177,البيانات!$B$2:$L$7,11,FALSE),"") ->  | D177: =IFERROR(VLOOKUP($A177,البيانات!$B$2:$L$7,2,FALSE)*C:C,"") ->  | E177: =IFERROR(VLOOKUP($A177,البيانات!$B$2:$L$7,3,FALSE)*C:C,"") ->  | F177: =IFERROR(VLOOKUP($A177,البيانات!$B$2:$L$7,4,FALSE)*C:C,"") -> 
B178: =IFERROR(VLOOKUP($A178,البيانات!$B$2:$L$7,11,FALSE),"") ->  | D178: =IFERROR(VLOOKUP($A178,البيانات!$B$2:$L$7,2,FALSE)*C:C,"") ->  | E178: =IFERROR(VLOOKUP($A178,البيانات!$B$2:$L$7,3,FALSE)*C:C,"") ->  | F178: =IFERROR(VLOOKUP($A178,البيانات!$B$2:$L$7,4,FALSE)*C:C,"") -> 
B179: =IFERROR(VLOOKUP($A179,البيانات!$B$2:$L$7,11,FALSE),"") ->  | D179: =IFERROR(VLOOKUP($A179,البيانات!$B$2:$L$7,2,FALSE)*C:C,"") ->  | E179: =IFERROR(VLOOKUP($A179,البيانات!$B$2:$L$7,3,FALSE)*C:C,"") ->  | F179: =IFERROR(VLOOKUP($A179,البيانات!$B$2:$L$7,4,FALSE)*C:C,"") -> 
B180: =IFERROR(VLOOKUP($A180,البيانات!$B$2:$L$7,11,FALSE),"") ->  | D180: =IFERROR(VLOOKUP($A180,البيانات!$B$2:$L$7,2,FALSE)*C:C,"") ->  | E180: =IFERROR(VLOOKUP($A180,البيانات!$B$2:$L$7,3,FALSE)*C:C,"") ->  | F180: =IFERROR(VLOOKUP($A180,البيانات!$B$2:$L$7,4,FALSE)*C:C,"") -> 
B181: =IFERROR(VLOOKUP($A181,البيانات!$B$2:$L$7,11,FALSE),"") ->  | D181: =IFERROR(VLOOKUP($A181,البيانات!$B$2:$L$7,2,FALSE)*C:C,"") ->  | E181: =IFERROR(VLOOKUP($A181,البيانات!$B$2:$L$7,3,FALSE)*C:C,"") ->  | F181: =IFERROR(VLOOKUP($A181,البيانات!$B$2:$L$7,4,FALSE)*C:C,"") -> 
B182: =IFERROR(VLOOKUP($A182,البيانات!$B$2:$L$7,11,FALSE),"") ->  | D182: =IFERROR(VLOOKUP($A182,البيانات!$B$2:$L$7,2,FALSE)*C:C,"") ->  | E182: =IFERROR(VLOOKUP($A182,البيانات!$B$2:$L$7,3,FALSE)*C:C,"") ->  | F182: =IFERROR(VLOOKUP($A182,البيانات!$B$2:$L$7,4,FALSE)*C:C,"") -> 
B183: =IFERROR(VLOOKUP($A183,البيانات!$B$2:$L$7,11,FALSE),"") ->  | D183: =IFERROR(VLOOKUP($A183,البيانات!$B$2:$L$7,2,FALSE)*C:C,"") ->  | E183: =IFERROR(VLOOKUP($A183,البيانات!$B$2:$L$7,3,FALSE)*C:C,"") ->  | F183: =IFERROR(VLOOKUP($A183,البيانات!$B$2:$L$7,4,FALSE)*C:C,"") -> 
B184: =IFERROR(VLOOKUP($A184,البيانات!$B$2:$L$7,11,FALSE),"") ->  | D184: =IFERROR(VLOOKUP($A184,البيانات!$B$2:$L$7,2,FALSE)*C:C,"") ->  | E184: =IFERROR(VLOOKUP($A184,البيانات!$B$2:$L$7,3,FALSE)*C:C,"") ->  | F184: =IFERROR(VLOOKUP($A184,البيانات!$B$2:$L$7,4,FALSE)*C:C,"") ->  | G184: =IFERROR(C184*B184,"") -> 
B185: =IFERROR(VLOOKUP($A185,البيانات!$B$2:$L$7,11,FALSE),"") ->  | D185: =IFERROR(VLOOKUP($A185,البيانات!$B$2:$L$7,2,FALSE)*C:C,"") ->  | E185: =IFERROR(VLOOKUP($A185,البيانات!$B$2:$L$7,3,FALSE)*C:C,"") ->  | F185: =IFERROR(VLOOKUP($A185,البيانات!$B$2:$L$7,4,FALSE)*C:C,"") -> 
B186: =IFERROR(VLOOKUP($A186,البيانات!$B$2:$L$7,11,FALSE),"") ->  | D186: =IFERROR(VLOOKUP($A186,البيانات!$B$2:$L$7,2,FALSE)*C:C,"") ->  | E186: =IFERROR(VLOOKUP($A186,البيانات!$B$2:$L$7,3,FALSE)*C:C,"") ->  | F186: =IFERROR(VLOOKUP($A186,البيانات!$B$2:$L$7,4,FALSE)*C:C,"") -> 
B187: =IFERROR(VLOOKUP($A187,البيانات!$B$2:$L$7,11,FALSE),"") ->  | D187: =IFERROR(VLOOKUP($A187,البيانات!$B$2:$L$7,2,FALSE)*C:C,"") ->  | E187: =IFERROR(VLOOKUP($A187,البيانات!$B$2:$L$7,3,FALSE)*C:C,"") ->  | F187: =IFERROR(VLOOKUP($A187,البيانات!$B$2:$L$7,4,FALSE)*C:C,"") -> 
B188: =IFERROR(VLOOKUP($A188,البيانات!$B$2:$L$7,11,FALSE),"") ->  | D188: =IFERROR(VLOOKUP($A188,البيانات!$B$2:$L$7,2,FALSE)*C:C,"") ->  | E188: =IFERROR(VLOOKUP($A188,البيانات!$B$2:$L$7,3,FALSE)*C:C,"") ->  | F188: =IFERROR(VLOOKUP($A188,البيانات!$B$2:$L$7,4,FALSE)*C:C,"") -> 
B189: =IFERROR(VLOOKUP($A189,البيانات!$B$2:$L$7,11,FALSE),"") ->  | D189: =IFERROR(VLOOKUP($A189,البيانات!$B$2:$L$7,2,FALSE)*C:C,"") ->  | E189: =IFERROR(VLOOKUP($A189,البيانات!$B$2:$L$7,3,FALSE)*C:C,"") ->  | F189: =IFERROR(VLOOKUP($A189,البيانات!$B$2:$L$7,4,FALSE)*C:C,"") -> 
B190: =IFERROR(VLOOKUP($A190,البيانات!$B$2:$L$7,11,FALSE),"") ->  | D190: =IFERROR(VLOOKUP($A190,البيانات!$B$2:$L$7,2,FALSE)*C:C,"") ->  | E190: =IFERROR(VLOOKUP($A190,البيانات!$B$2:$L$7,3,FALSE)*C:C,"") ->  | F190: =IFERROR(VLOOKUP($A190,البيانات!$B$2:$L$7,4,FALSE)*C:C,"") -> 
B191: =IFERROR(VLOOKUP($A191,البيانات!$B$2:$L$7,11,FALSE),"") ->  | D191: =IFERROR(VLOOKUP($A191,البيانات!$B$2:$L$7,2,FALSE)*C:C,"") ->  | E191: =IFERROR(VLOOKUP($A191,البيانات!$B$2:$L$7,3,FALSE)*C:C,"") ->  | F191: =IFERROR(VLOOKUP($A191,البيانات!$B$2:$L$7,4,FALSE)*C:C,"") -> 
B192: =IFERROR(VLOOKUP($A192,البيانات!$B$2:$L$7,11,FALSE),"") ->  | D192: =IFERROR(VLOOKUP($A192,البيانات!$B$2:$L$7,2,FALSE)*C:C,"") ->  | E192: =IFERROR(VLOOKUP($A192,البيانات!$B$2:$L$7,3,FALSE)*C:C,"") ->  | F192: =IFERROR(VLOOKUP($A192,البيانات!$B$2:$L$7,4,FALSE)*C:C,"") -> 
B193: =IFERROR(VLOOKUP($A193,البيانات!$B$2:$L$7,11,FALSE),"") ->  | D193: =IFERROR(VLOOKUP($A193,البيانات!$B$2:$L$7,2,FALSE)*C:C,"") ->  | E193: =IFERROR(VLOOKUP($A193,البيانات!$B$2:$L$7,3,FALSE)*C:C,"") ->  | F193: =IFERROR(VLOOKUP($A193,البيانات!$B$2:$L$7,4,FALSE)*C:C,"") -> 
B194: =IFERROR(VLOOKUP($A194,البيانات!$B$2:$L$7,11,FALSE),"") ->  | D194: =IFERROR(VLOOKUP($A194,البيانات!$B$2:$L$7,2,FALSE)*C:C,"") ->  | E194: =IFERROR(VLOOKUP($A194,البيانات!$B$2:$L$7,3,FALSE)*C:C,"") ->  | F194: =IFERROR(VLOOKUP($A194,البيانات!$B$2:$L$7,4,FALSE)*C:C,"") -> 
B195: =IFERROR(VLOOKUP($A195,البيانات!$B$2:$L$7,11,FALSE),"") ->  | D195: =IFERROR(VLOOKUP($A195,البيانات!$B$2:$L$7,2,FALSE)*C:C,"") ->  | E195: =IFERROR(VLOOKUP($A195,البيانات!$B$2:$L$7,3,FALSE)*C:C,"") ->  | F195: =IFERROR(VLOOKUP($A195,البيانات!$B$2:$L$7,4,FALSE)*C:C,"") -> 
B196: =IFERROR(VLOOKUP($A196,البيانات!$B$2:$L$7,11,FALSE),"") ->  | D196: =IFERROR(VLOOKUP($A196,البيانات!$B$2:$L$7,2,FALSE)*C:C,"") ->  | E196: =IFERROR(VLOOKUP($A196,البيانات!$B$2:$L$7,3,FALSE)*C:C,"") ->  | F196: =IFERROR(VLOOKUP($A196,البيانات!$B$2:$L$7,4,FALSE)*C:C,"") -> 
B197: =IFERROR(VLOOKUP($A197,البيانات!$B$2:$L$7,11,FALSE),"") ->  | D197: =IFERROR(VLOOKUP($A197,البيانات!$B$2:$L$7,2,FALSE)*C:C,"") ->  | E197: =IFERROR(VLOOKUP($A197,البيانات!$B$2:$L$7,3,FALSE)*C:C,"") ->  | F197: =IFERROR(VLOOKUP($A197,البيانات!$B$2:$L$7,4,FALSE)*C:C,"") ->  | I197: =IFERROR(H197-G197,"") -> 
B198: =IFERROR(VLOOKUP($A198,البيانات!$B$2:$L$7,11,FALSE),"") ->  | D198: =IFERROR(VLOOKUP($A198,البيانات!$B$2:$L$7,2,FALSE)*C:C,"") ->  | E198: =IFERROR(VLOOKUP($A198,البيانات!$B$2:$L$7,3,FALSE)*C:C,"") ->  | F198: =IFERROR(VLOOKUP($A198,البيانات!$B$2:$L$7,4,FALSE)*C:C,"") -> 
B199: =IFERROR(VLOOKUP($A199,البيانات!$B$2:$L$7,11,FALSE),"") ->  | D199: =IFERROR(VLOOKUP($A199,البيانات!$B$2:$L$7,2,FALSE)*C:C,"") ->  | E199: =IFERROR(VLOOKUP($A199,البيانات!$B$2:$L$7,3,FALSE)*C:C,"") ->  | F199: =IFERROR(VLOOKUP($A199,البيانات!$B$2:$L$7,4,FALSE)*C:C,"") -> 
B200: =IFERROR(VLOOKUP($A200,البيانات!$B$2:$L$7,11,FALSE),"") ->  | D200: =IFERROR(VLOOKUP($A200,البيانات!$B$2:$L$7,2,FALSE)*C:C,"") ->  | E200: =IFERROR(VLOOKUP($A200,البيانات!$B$2:$L$7,3,FALSE)*C:C,"") ->  | F200: =IFERROR(VLOOKUP($A200,البيانات!$B$2:$L$7,4,FALSE)*C:C,"") -> 
... 643 more rows

Sheet البيانات
A1: ت | B1: قياس الكابينة | C1: MDFنوع الخشب | D1: شريط PVC | E1: ظهر( طبقة الفايبر) | F1: مسند بلاستك | G1: سعر MDF | H1: سعر PVC | I1: سعر الظهر | J1: سعر المسند | K1: مواد تشغيل | L1: الأجمالي | O1: السعر | P1: المبلغ
A2: 1 | B2: AB 100*56*75 | C2: 2.1 | D2: =C2*700/100 -> 14.7 | E2: =C2*30/100 -> 0.63 | F2: =C2*4 -> 8.4 | G2: =IF(C2="","",VLOOKUP($G$1,$O$2:$P$6,2,0)*C2) -> 15.54 | H2: =IF(D2="","",VLOOKUP($H$1,$O$2:$P$6,2,0)*D2) -> 2.058 | I2: =IF(E2="","",VLOOKUP($I$1,$O$2:$P$6,2,0)*E2) -> 2.52 | J2: =IF(F2="","",VLOOKUP($J$1,$O$2:$P$6,2,0)*F2) -> 0.168 | L2: =SUM(G2:K2) -> 20.286 | O2: سعر MDF | P2: 7.4
A3: 2 | B3: AB 90*56*75 | C3: 1.99 | D3: =C3*700/100 -> 13.93 | E3: =C3*30/100 -> 0.597 | F3: =C3*4 -> 7.96 | G3: 14.726 | H3: 1.9502 | I3: 2.388 | J3: 0.1592 | L3: 19.2234 | O3: سعر PVC | P3: 0.14
A4: 3 | B4: AB 80*56*75 | C4: 1.85 | D4: 12.95 | E4: 0.555 | F4: 7.4 | G4: 13.69 | H4: 1.813 | I4: 2.22 | J4: 0.148 | L4: 17.871 | O4: سعر الظهر | P4: 4
A5: 4 | B5: AB 75*56*75 | C5: 1.79 | D5: 12.53 | E5: 0.537 | F5: 7.16 | G5: 13.246 | H5: 1.7542 | I5: 2.148 | J5: 0.1432 | L5: 17.2914 | O5: سعر المسند | P5: 0.02
A6: 5 | B6: AB 70*56*75 | C6: 1.72 | D6: 12.04 | E6: 0.516 | F6: 6.88 | G6: 12.728 | H6: 1.6856 | I6: 2.064 | J6: 0.1376 | L6: 16.6152 | O6: مواد تشغيل | P6: 0
A7: 6 | B7: AB 60*56*75 | C7: 1.6 | D7: 11.2 | E7: 0.48 | F7: 6.4 | G7: 11.84 | H7: 1.568 | I7: 1.92 | J7: 0.128 | L7: 15.456

Sheet اسماء الزبائن والجهات
B1: اسماء الجهات والعملاء
B2: الزبون 1
B3: الزبون 2
B4: الزبون 3
B5: الزبون 4
B6: الزبون 5
B7: الزبون 6
B8: الزبون 7
B9: الزبون 8
B10: الزبون 9
